Cogmind - Beta 15 @@@ ROGUE MODE // 2025.08.16 @ 21:03:55 Player: Cog on my mind Result: Escaped singularity! Performance ------------- Evolutions (9) 4500 Regions Visited (33) 6600 Robots Destroyed (542) 2710 Value Destroyed (24230) 24230 Prototype IDs (210) 4200 Alien Tech Used (6) 1200 Bonus (68170) 68170 TOTAL SCORE: 111610 Bonus ------- High Alert Combat Kills 3355 Follower Combat Kills 2363 Forged Quantum Companion 2000 Network Hubs Disabled 600 Registered with UFD 300 Met Optimus in HQ 500 Met Imprinter 300 Met Zhirov 300 Built Enhanced Grunts 300 A7 Reached Mainframe 300 Met R17 at Cetus 500 Met R17 at Research 2000 Scanned by Researcher 500 Destroyed Superfortress 15000 Met Optimus at Protoforge 1000 Met MAIN.C 5000 Hacked MAIN.C 300 Destroyed MAIN.C Shell 5000 Destroyed MAIN.C 10000 Met Architect 300 Destroyed A6 400 Destroyed Architect 15000 Win 3000 Friendly Fire -148 Cogmind --------- Core Integrity 1104/1600 Matter 246/300 Energy 146/2820 System Corruption 4% Temperature Cool (36) Movement Hovering (27) Location Near Former Tau Ceti IV Parts ------- > --- POWER (3) -------- Hybrid Graviton Reactor Hybrid Graviton Reactor Concept Zero-point Core > --- PROPULSION (8) --- Cooled Linear Gravjet Combat Linear Gravjet Combat Linear Gravjet Combat Linear Gravjet Combat Linear Gravjet Combat Linear Gravjet Concept Combat Aerolev Unit Concept Combat Aerolev Unit > --- UTILITY (12) ----- Experimental Core Analyzer Experimental Armor Integrity Analyzer Femtoactuators Improved Force Booster Concept Reaction Jets Concept Phase Shift Module SHELL Armor Advanced Force Field Concept Impact Drone Bay (0/6) > --- WEAPON (2) ------- Concept Deflector Sword Superquantum Companion > --- INVENTORY (5) ---- Zero-point Reactor Experimental Gyrokinetic Inverter Combat Linear Gravjet Concept NT7 Matterbank (750) Improved Utility Shielding Peak State ------------ > --- POWER ------------ Hybrid Graviton Reactor Hybrid Graviton Reactor Concept Zero-point Core > --- PROPULSION ------- Experimental Gyrokinetic Inverter Combat Linear Gravjet Combat Linear Gravjet Combat Linear Gravjet Combat Linear Gravjet Combat Linear Gravjet Concept Combat Aerolev Unit Concept Combat Aerolev Unit > --- UTILITY ---------- Concept Antigrav Storage Unit Concept Melee Reflex Suite Experimental Core Analyzer Experimental Armor Integrity Analyzer Femtoactuators Experimental Reaction Control System Concept Phase Shift Module Improved Utility Shielding SHELL Armor Improved Force Field > --- WEAPON ----------- Concept Deflector Sword Superquantum Companion > --- INVENTORY -------- Cooled Antimatter Reactor Quantum Reactor Cooled Linear Gravjet Combat Linear Gravjet Combat Linear Gravjet Experimental Cooling System Experimental Energy Well Concept Chromion Battery Concept NT7 Matterbank Structural Scanner Improved Melee Analysis Suite ECM Suite Concept Reaction Jets Advanced Phase Shifter Concept RG22 Armor Concept RG22 Armor Advanced Force Field Concept Impact Drone Bay High-powered Transdimensional Reconstructor Improved Potential Cannon Compact Mass Driver Ragnarok Missile Launcher Advanced Remote Datajack [Rating: 272] Favorites ----------- Power Hybrid Graviton Reactor Engine F-cell Engine Power Core Concept Zero-point Core Reactor Hybrid Graviton Reactor Propulsion Combat Linear Gravjet Treads Light Treads Leg Cargo Legs Hover Unit Combat Linear Gravjet Flight Unit Nuclear Pulse Array Utility Advanced Melee Analysis Suite Device Structural Scanner Storage Large Storage Unit Processor Advanced Melee Analysis Suite Hackware Experimental Hacking Suite Protection Enhanced Scrap Shield Weapon Companion Sword Energy Cannon Subdweller Beam Cannon Ballistic Gun Light Assault Rifle Ballistic Cannon Heavy Gauss Cannon Launcher Rocket Launcher Special Weapon Improved Remote Datajack Slashing Weapon Companion Sword Special Melee Weapon Improved Datajack Build | -11 -10 -10 -9 -9 -6 -6 -6 -6 -6 -6 -5 -5 -5 -5 -5 -5 -5 -4 -4 -4 -4 -4 -4 -4 -4 -3 -3 -3 -2 -2 -1 -1 -1 ------- Run | Yrd Mat Sub Rec Scr Fac Was Fac Low Low Zio Pro Fac Was Fac Upp Upp Zhi Pro Fac Was Fac Ext Cet Arc Hub Res Qua Frg Res Tes Acc Com Ac0 Slots Evolved 18 | . . . . . 8 . . . . . . 2 . . . . . . 2 . . . . . . 2 . . 2 . 2 . . Power 2 | . . . . . . . . . . . . . . . . . . . . . . . . . . 1 . . 1 . . . . Propulsion 6 | . . . . . 4 . . . . . . . . . . . . . . . . . . . . 1 . . 1 . . . . Utility 10 | . . . . . 4 . . . . . . 2 . . . . . . 2 . . . . . . . . . . . 2 . . Weapon . | . . . . . . . . . . . . . . . . . . . . . . . . . . . . . . . . . . Parts Attached 355 | 8 4 14 . 5 61 1 16 4 1 . 1 20 3 14 3 3 5 2 40 . 23 4 3 4 3 10 3 35 17 9 10 25 4 Power 29 | 1 . 3 . . 9 . . . . . . 1 . 1 . . 1 . 1 . 2 . . . 1 . . 4 3 . . 2 . Engine 11 | 1 . 3 . . 6 . . . . . . 1 . . . . . . . . . . . . . . . . . . . . . Core 4 | . . . . . 3 . . . . . . . . . . . . . . . . . . . . . . . 1 . . . . Reactor 14 | . . . . . . . . . . . . . . 1 . . 1 . 1 . 2 . . . 1 . . 4 2 . . 2 . Propulsion 124 | 2 . 1 . . 26 . 7 1 1 . . 11 . 5 . 2 1 . 21 . 9 . . . 1 4 1 11 7 4 1 7 1 Treads 2 | 2 . . . . . . . . . . . . . . . . . . . . . . . . . . . . . . . . . Leg 8 | . . 1 . . 6 . . . . . . . . . . . 1 . . . . . . . . . . . . . . . . Wheel . | . . . . . . . . . . . . . . . . . . . . . . . . . . . . . . . . . . Hover 107 | . . . . . 20 . 7 1 1 . . 11 . 4 . 2 . . 18 . 7 . . . 1 4 1 11 6 4 1 7 1 Flight 7 | . . . . . . . . . . . . . . 1 . . . . 3 . 2 . . . . . . . 1 . . . . Utility 163 | 3 1 4 . 3 25 1 7 3 . . 1 8 3 8 3 1 3 2 13 . 11 2 3 3 . 6 . 16 5 5 8 12 3 Device 81 | 2 . 3 . . 10 1 3 1 . . 1 4 3 2 1 1 . 2 5 . 4 1 1 2 . 3 . 10 3 3 4 8 3 Storage 11 | 1 1 . . 3 1 . . . . . . 1 . 1 . . 1 . 1 . . . . . . . . 1 . . . . . Processor 25 | . . . . . 5 . 1 1 . . . . . 4 1 . . . 4 . 2 . . . . 1 . 2 1 . 1 2 . Hackware 17 | . . . . . 2 . 1 . . . . 2 . 1 1 . 1 . 2 . 2 . . . . 2 . . 1 . 2 . . Protection 29 | . . 1 . . 7 . 2 1 . . . 1 . . . . 1 . 1 . 3 1 2 1 . . . 3 . 2 1 2 . Artifact . | . . . . . . . . . . . . . . . . . . . . . . . . . . . . . . . . . . Weapon 39 | 2 3 6 . 2 1 . 2 . . . . . . . . . . . 5 . 1 2 . 1 1 . 2 4 2 . 1 4 . Energy Gun . | . . . . . . . . . . . . . . . . . . . . . . . . . . . . . . . . . . Energy Cannon 6 | . . 4 . . . . . . . . . . . . . . . . 1 . . . . . . . . . . . 1 . . Ballistic Gun 5 | 2 . . . . . . . . . . . . . . . . . . . . . . . . . . . 1 . . . 2 . Ballistic Cannon 7 | . 2 . . . . . . . . . . . . . . . . . . . . 1 . . 1 . . . 2 . . 1 . Launcher 7 | . 1 1 . 1 . . 1 . . . . . . . . . . . . . 1 . . . . . . 2 . . . . . Special Weapon 3 | . . . . . . . . . . . . . . . . . . . 1 . . 1 . . . . . . . . . 1 . Impact Weapon . | . . . . . . . . . . . . . . . . . . . . . . . . . . . . . . . . . . Slashing Weapon 6 | . . 1 . 1 . . . . . . . . . . . . . . 1 . . . . . . . 2 1 . . . . . Piercing Weapon . | . . . . . . . . . . . . . . . . . . . . . . . . . . . . . . . . . . Special Melee Weapon 5 | . . . . . 1 . 1 . . . . . . . . . . . 2 . . . . 1 . . . . . . . . . Unidentified Prototypes 36 | . . . . 1 5 . . 3 . . . 1 . 6 . . 5 . . . . . . . . . 2 1 . 3 1 6 2 Corrupted Parts 2 | . . . . . . . . . . . . . . . . . . . . . 1 . . . 1 . . . . . . . . System Corruption 20 | . . . . . . . . . . . . . . . . . . . . . 10 . . . 10 . . . . . . . . Parts Lost 87 | . . 2 1 . 20 . 3 . . . . 9 . . . 2 . . 20 . 4 . . . . . . 17 5 2 . . 2 Power 7 | . . . . . 2 . . . . . . 1 . . . . . . 1 . . . . . . . . 2 1 . . . . Propulsion 43 | . . . . . 10 . 3 . . . . 6 . . . 2 . . 11 . . . . . . . . 7 2 1 . . 1 Utility 28 | . . . . . 7 . . . . . . 2 . . . . . . 5 . 3 . . . . . . 7 2 1 . . 1 Weapon 9 | . . 2 1 . 1 . . . . . . . . . . . . . 3 . 1 . . . . . . 1 . . . . . Highest Loss Streak 5 | . . 1 1 . 4 . 1 . . . . 4 . . . 1 . . 4 . 2 . . . . . . 5 2 2 . . 2 To Critical Strikes 5 | . . . . . . . . . . . . . . . . . . . . . . . . . . . . 3 . 1 . . 1 Average Backups 14 | 1 7 9 9 10 13 14 13 14 14 14 14 12 14 14 14 13 13 14 14 14 14 14 15 15 15 14 14 13 15 21 23 23 20 Power 1 | . 1 1 1 1 1 1 1 1 1 1 1 . . 1 2 2 2 2 1 2 1 1 1 1 1 . . . 1 2 2 2 1 Propulsion 1 | . . . 2 1 2 3 2 2 2 2 2 2 1 1 2 . . 1 2 2 1 2 1 1 1 1 1 1 3 4 2 3 4 Utility 8 | . 1 4 5 4 6 8 8 10 10 10 10 8 11 10 9 10 10 8 7 7 8 9 9 9 10 10 10 8 7 12 14 13 12 Weapon 1 | . 4 2 1 2 1 1 . . 1 1 1 1 1 1 1 1 1 . 1 2 1 1 1 1 1 1 1 1 1 2 3 2 1 Tool/Special . | . . . . . . . . . . . . . . . . . . . . . . . . . . . . . . . . . . Unused Backups 89 | . 1 7 . 4 15 1 3 2 . 1 1 2 . 5 1 . . . 9 1 2 . 1 1 . 3 1 5 . 5 2 6 10 Power 11 | . 1 1 . . 4 . . . . . . . . 1 . . . . . . . . . . . 1 . . . . . 2 1 Propulsion 29 | . . 3 . 2 6 . 1 . . . . 1 . 1 . . . . 4 . 1 . 1 . . . . . . 4 2 . 3 Utility 42 | . . 1 . 2 3 1 2 2 . 1 1 1 . 3 1 . . . 3 1 1 . . . . 2 1 5 . 1 . 4 6 Weapon 6 | . . 2 . . 2 . . . . . . . . . . . . . 1 . . . . 1 . . . . . . . . . Tool/Special 1 | . . . . . . . . . . . . . . . . . . . 1 . . . . . . . . . . . . . . Average Slot Usage (%) 89 | . 100 74 61 60 83 93 95 93 93 93 93 90 93 94 100 99 99 99 89 84 90 100 100 99 94 98 99 94 93 91 91 90 92 Engine 4 | . 14 11 11 11 3 6 6 6 6 6 6 4 5 4 . . 3 5 2 . . . . . . . . . . . . . . Reactor 3 | . . . . . . . . . . . . . . . 5 5 1 . 2 5 5 5 5 5 5 8 9 8 10 8 8 8 8 Treads 1 | . 28 7 . . . . . . . . . . . . . . . . . . . . . . . . . . . . . . . Leg 2 | . . 8 11 11 7 . . . . . . . . . . . . . . . . . . . . . . . . . . . . Hover 24 | . . . . . 24 40 39 40 40 40 40 32 35 34 35 34 35 35 25 . 5 31 31 31 31 31 33 29 29 34 32 32 32 Device 12 | . 14 11 11 11 6 13 9 6 6 6 6 11 11 12 11 11 9 10 13 15 18 11 10 10 10 13 13 15 16 12 17 15 20 Storage 6 | . 14 11 11 11 5 6 6 6 6 6 6 5 5 5 5 5 5 5 5 5 5 5 5 5 5 4 4 4 4 4 4 4 3 Processor 13 | . . . . . 15 20 18 13 13 13 13 11 11 12 23 23 23 17 24 26 23 21 21 21 21 19 19 17 12 13 12 12 11 Hackware 1 | . . . . . 2 . 1 . . . . 2 . 3 5 5 5 5 1 5 4 5 5 5 5 4 4 2 . . 2 . . Protection 3 | . . . . . 4 . . 5 6 6 6 5 10 4 . . . 5 2 . . 8 9 8 5 4 4 4 7 4 4 7 4 Energy Cannon 1 | . . 15 . . . . . . . . . . . . . . . . . . 3 . . . . . . . . . . . . Ballistic Cannon 1 | . 20 2 . . . . . . . . . . . . . . . . . . . 4 5 5 4 4 4 1 1 4 3 . . Slashing Weapon 5 | . . 4 11 11 5 6 6 6 6 6 6 5 5 5 5 5 5 5 5 5 5 5 5 5 5 4 3 5 6 4 4 7 8 Special Melee Weapon 1 | . . . . . 1 . 4 5 6 6 6 4 5 5 5 5 5 4 1 5 1 . . . . . . . . . . . . Peak Build Rating 272 | 9 9 29 28 30 74 73 79 81 78 78 78 92 98 104 105 111 114 115 138 126 163 162 169 169 158 180 186 241 252 245 264 272 272 Average Rating 116 | 5 7 22 27 28 62 69 72 76 77 78 77 84 93 91 100 107 106 108 120 125 139 159 160 166 156 178 178 203 235 238 255 265 265 On Entrance 116 | . 7 8 28 26 30 69 69 76 77 78 78 78 82 92 100 101 108 111 109 126 125 157 159 169 157 154 180 181 200 245 242 256 270 Naked Turns . | . . . . . . . . . . . . . . . . . . . . . . . . . . . . . . . . . . Heaviest Build 128 | 13 23 32 23 42 59 38 53 59 52 52 54 55 62 56 39 39 37 44 73 38 63 71 70 71 71 90 88 91 104 114 119 121 128 Greatest Support 131 | 40 40 55 55 55 115 52 66 55 58 58 66 71 57 59 67 62 62 66 70 55 97 80 80 80 80 98 118 131 118 116 116 116 123 Greatest Overweight (x) 23 | . . . . . 1 . . 1 . . . 1 1 1 . . . . 2 . 1 . . 23 1 1 . 1 1 1 1 1 1 Average Overweight (x) . | . . . . . . . . . . . . . . . . . . . . . . . . 3 . . . . . . . . . Largest Inventory Capacity 25 | 8 10 10 10 15 15 15 15 15 15 15 15 15 15 15 15 15 15 15 15 15 15 15 15 15 15 15 15 25 25 25 25 25 25 Average Capacity 15 | 7 9 10 10 13 15 15 15 15 15 15 15 15 15 15 15 15 15 15 15 15 15 15 15 15 15 15 15 15 25 25 25 25 23 Most Carried 25 | 2 10 10 10 13 15 15 15 15 15 15 15 15 15 15 15 15 15 15 15 15 15 15 15 15 15 15 15 19 25 25 25 25 24 Average Carried 14 | 1 7 9 10 11 14 14 14 14 15 15 14 12 14 14 14 13 14 14 14 14 14 14 14 14 14 14 14 14 18 24 24 24 20 Final Capacity 25 | 8 10 10 10 15 15 15 15 15 15 15 15 15 15 15 15 15 15 15 15 15 15 15 15 15 15 15 15 25 25 25 25 25 5 Final Carried 25 | 2 10 10 10 13 15 15 15 15 15 15 15 15 14 13 15 13 15 15 15 15 14 15 15 15 15 15 15 14 25 25 25 24 5 Class Distribution -------------------- 40% | Mutant 15% | Sprinter 13% | Scavenger-Mutant 6% | Scout 4% | Gladiator 4% | Commander-Sprinter Dominant Class ---------------- Mutant | -10/Materials Mutant | -10/Subcaves Mutant | -9/Recycling Mutant | -9/Scraptown Scavenger-Mutant | -6/Factory Scout | -6/Waste Mutant | -6/Factory Mutant | -6/Lower Caves Mutant | -6/Lower Caves Mutant | -6/Zion Mutant | -5/Proximity Caves Scavenger-Scout | -5/Factory Sprinter | -5/Waste Scout | -5/Factory Scout | -5/Upper Caves Scout | -5/Upper Caves Scout | -5/Zhirov Mutant | -4/Proximity Caves Mutant | -4/Factory Mutant | -4/Waste Sprinter | -4/Factory Commander-Sprinter | -4/Extension Commander-Sprinter | -4/Cetus Commander-Mutant | -4/Archives Commander-Sprinter | -4/Hub_04(d) Sprinter | -3/Research Sprinter | -3/Quarantine Sprinter | -3/Protoforge Gladiator | -2/Research Scavenger-Mutant | -2/Testing Mutant | -1/Access Gladiator | -1/Command Sprinter | -1/Access_0 Resources | -11 -10 -10 -9 -9 -6 -6 -6 -6 -6 -6 -5 -5 -5 -5 -5 -5 -5 -4 -4 -4 -4 -4 -4 -4 -4 -3 -3 -3 -2 -2 -1 -1 -1 ----------- Run | Yrd Mat Sub Rec Scr Fac Was Fac Low Low Zio Pro Fac Was Fac Upp Upp Zhi Pro Fac Was Fac Ext Cet Arc Hub Res Qua Frg Res Tes Acc Com Ac0 Matter Collected 11858 | 344 552 453 90 280 956 20 1124 200 17 . 75 717 73 279 60 74 110 168 645 28 637 137 127 141 149 239 189 1935 296 369 395 902 77 Remotely . | . . . . . . . . . . . . . . . . . . . . . . . . . . . . . . . . . . Salvage Created 28813 | 214 560 493 . . 3008 . 1585 266 . . 271 1424 . 881 50 512 271 147 3795 . 1820 1210 236 134 724 763 991 3209 1625 1128 1763 1548 185 Parts 1364 | 16 47 37 . . 147 . 66 10 . . 9 81 . 39 3 20 3 15 180 . 91 52 12 14 27 34 37 182 84 41 63 49 5 Haulers Intercepted 25 | . . . . . 6 . 1 . . . . 2 . 5 . . . . 4 . 3 . . . . 2 . . . 2 . . . Recyclers Shooed 5 | . . . . . . . 3 . . . . 1 . . . . . . . . . . . . . . . . 1 . . . . Parts Field Recycled . | . . . . . . . . . . . . . . . . . . . . . . . . . . . . . . . . . . Retrieved Matter . | . . . . . . . . . . . . . . . . . . . . . . . . . . . . . . . . . . Parts Self-Destructed 120 | . . 11 . . . . . 55 . 2 15 . . . 3 20 1 13 . . . . . . . . . . . . . . . Prevented 8 | . . . . . . . . 4 . . 4 . . . . . . . . . . . . . . . . . . . . . . Kills | -11 -10 -10 -9 -9 -6 -6 -6 -6 -6 -6 -5 -5 -5 -5 -5 -5 -5 -4 -4 -4 -4 -4 -4 -4 -4 -3 -3 -3 -2 -2 -1 -1 -1 ------- Run | Yrd Mat Sub Rec Scr Fac Was Fac Low Low Zio Pro Fac Was Fac Upp Upp Zhi Pro Fac Was Fac Ext Cet Arc Hub Res Qua Frg Res Tes Acc Com Ac0 Combat Hostiles Destroyed 344 | . 14 18 . . 33 . 16 7 . . 4 14 . 2 1 11 . 8 42 . 19 12 3 . 6 4 10 48 30 9 28 4 1 Melee 234 | . . . . . 33 . 13 4 . . 4 12 . 2 1 7 . 1 33 . 13 11 3 . 1 4 8 31 22 7 19 4 1 Guns 2 | . 2 . . . . . . . . . . . . . . . . . . . . . . . . . . . . . . . . Cannons 42 | . 6 13 . . . . . . . . . . . . . 4 . . 6 . 2 . . . . . 2 3 2 1 3 . . AOE 60 | . 6 5 . . . . 3 3 . . . 2 . . . . . 7 . . 4 . . . 5 . . 13 6 . 6 . . Classes Destroyed 25 | 2 6 3 . . 4 . . . . . 1 1 . . 1 1 . 1 . . . . . . 1 . 1 3 . . . . . Worker 37 | . 3 . . . 7 . 2 . . . . 4 . 3 . . . . 6 . 6 . . . 5 1 . . . . . . . Builder 20 | . 1 . . . 2 . 2 . . . . 3 . 1 . . . . 4 . 3 1 . . 1 1 . . . . 1 . . Tunneler 12 | 6 1 . . . 1 . . . . . . . . 2 . . . . 1 . 1 . . . . . . . . . . . . Hauler 25 | . . . . . 6 . 1 . . . . 2 . 5 . . . . 4 . 3 . . . . 2 . . . 2 . . . Recycler 20 | 1 1 . . . 3 . 5 . . . . 2 . 1 . . . . 4 . 1 1 . . 1 . . . . . . . . Carrier 1 | . . . . . . . . . . . . . . . . . . . . . . . . . 1 . . . . . . . . Minesweeper 3 | . . . . . . . . . . . 2 . . . . . . 1 . . . . . . . . . . . . . . . Mechanic 3 | . . . . . 1 . 1 . . . . . . . . . . . . . . 1 . . . . . . . . . . . Operator 26 | . 1 . . . 3 . 2 . . . . 1 . 1 . . . . 4 . . 1 . 4 1 . 1 2 2 . 2 1 . Drone 21 | . . . . . . . . . . . . . . . . . . 2 . . . . . . . . . 7 4 1 7 . . Turret 2 | . . 2 . . . . . . . . . . . . . . . . . . . . . . . . . . . . . . . Watcher 57 | . 3 . . . 4 . 2 . . . . 2 . 1 . . . . 11 . 6 3 1 . 4 4 3 4 2 1 4 2 . Swarmer 75 | . 6 8 . . 12 . 8 1 . . . . . . . 4 . 5 12 . 6 . . . . . . . 9 . 4 . . Cutter 9 | . . . . . . . . . . . . 3 . . . . . . . . . . . . . . . 1 5 . . . . Saboteur 1 | . . . . . . . . . . . . . . . . . . . . . . . . . . . . 1 . . . . . Grunt 88 | . 8 1 . . 10 . 3 6 . . 4 1 . 2 . 6 . 1 7 . 6 5 . . 4 . 6 2 8 2 6 . . Brawler 1 | . . . . . . . . . . . . . . . . . . . . . . . . . . . . 1 . . . . . Duelist 2 | . . . . . . . . . . . . . . . . 1 . . . . . . . . . . . 1 . . . . . Researcher 8 | . . . . . . . . . . . . . . . . . . . . . . . . . . . 1 5 . 2 . . . Sentry 38 | . . 1 . . 4 . 2 . . . . 4 . . . . . . 2 . 1 5 . . . 3 4 7 2 . 3 . . Specialist 3 | . . . . . 2 . . . . . . . . . . . . . . . . . . . . . . 1 . . . . . Hunter 17 | . . . . . . . . . . . . . . . 1 . . . 5 . . . . . 2 1 . 3 . 3 2 . . Programmer 60 | . . . . . 5 . 3 . . . . 6 . . . . . . 16 . 6 2 . . . . . 11 2 3 6 . . Cetus Guard 3 | . . . . . . . . . . . . . . . . . . . . . . . 3 . . . . . . . . . . Hotshot 3 | . . . . . . . . . . . . . . . . . . . . . . . . . . . . 3 . . . . . Decapitator 6 | . . . . . . . . . . . . . . . . . . . . . . . . . . . . 6 . . . . . Immortal 1 | . . . . . . . . . . . . . . . . . . . . . . . . . . . . 1 . . . . . Combat Programmer 2 | . . . . . . . . . . . . . . . . . . . . . . . . . . . . . . . . 2 . Alpha 7 2 | . . . . . . . . . . . . . . . . . . . . . . . . . . . . 2 . . . . . Subdweller 8 | . . 8 . . . . . . . . . . . . . . . . . . . . . . . . . . . . . . . Best Kill Streak 9 | 4 6 3 . . 6 . 4 4 . . 3 5 . 3 1 5 . 7 9 . 6 6 4 3 7 3 6 8 8 9 9 4 1 Combat Bots Only 9 | . 3 3 . . 5 . 3 4 . . 2 3 . 1 1 5 . 7 7 . 5 3 3 . 5 1 5 6 7 3 9 2 1 Max Kills in Single Turn 5 | 1 2 2 . . 1 . 3 1 . . 1 2 . 1 1 2 . 4 2 . 4 1 1 1 5 1 2 2 4 1 4 1 1 Gunslinging . | . . . . . . . . . . . . . . . . . . . . . . . . . . . . . . . . . . Exploded 4 | . 2 2 . . . . 3 1 . . . 2 . . . . . 4 . . 4 . . . 2 . . 2 4 . 4 . . Melee 2 | . . . . . 1 . 1 1 . . 1 1 . 1 1 2 . 1 2 . 2 1 1 . 1 1 1 1 2 1 1 1 1 Uniques/NPCs Destroyed 5 | . . . . . . . . . . . . . . . . . . . . . . . . . . . . 1 . . . 2 2 Superfortress (-3/Protoforge) MAIN.C Shell (-1/Command) MAIN.C (-1/Command) A6 (-1/Access_0) Architect (-1/Access_0) Combat | -11 -10 -10 -9 -9 -6 -6 -6 -6 -6 -6 -5 -5 -5 -5 -5 -5 -5 -4 -4 -4 -4 -4 -4 -4 -4 -3 -3 -3 -2 -2 -1 -1 -1 -------- Run | Yrd Mat Sub Rec Scr Fac Was Fac Low Low Zio Pro Fac Was Fac Upp Upp Zhi Pro Fac Was Fac Ext Cet Arc Hub Res Qua Frg Res Tes Acc Com Ac0 Hostile Shots Fired 2568 | . 40 114 16 . 384 . 113 17 . . 14 146 . 7 9 19 . 11 251 . 90 22 10 2 6 9 52 507 176 67 165 96 225 Missed 1112 | . 13 41 6 . 125 . 49 7 . . 6 50 . 2 2 3 . 5 79 . 56 9 2 . 4 3 24 221 68 27 70 58 182 Intercepted 1 | . . . . . . . . . . . . . . . . . . . . . . . . . . . . 1 . . . . . Deflected 34 | . . . . . . . . . . . . . . . . 1 . . 11 . 1 . 1 . . 1 1 9 5 2 . . 2 Hits 1456 | . 27 73 10 . 259 . 64 10 . . 8 96 . 5 7 16 . 6 172 . 34 13 8 2 2 6 28 286 108 40 95 38 43 Melee 22 | . . . . . . . . . . . . 2 . . . . . . 1 . 1 . . . . . . 5 11 . . . 2 Projectile 1434 | . 27 73 10 . 259 . 64 10 . . 8 94 . 5 7 16 . 6 171 . 33 13 8 2 2 6 28 281 97 40 95 38 41 AOE 21 | . . . . . 3 . . . . . . 3 . . . . . . . . . . . . . . . 12 2 . . 1 . Critical Strikes 78 | . . . 1 . 7 . . . . . . 10 . . . . . . 6 . 3 . . . . . . 25 10 2 2 7 5 Actively Blocked 4 | . . . . . . . . . . . . 1 . . . . . . . . . . . . . . . 1 . . . 1 1 Part Disruptions 4 | . . . . . 1 . . . . . . . . . . . . . . . . . . . . . . . . 1 1 . 1 Damage Taken 25347 | . 302 924 143 . 3975 . 852 261 . . 155 2128 . 120 118 257 . 133 3069 . 833 311 286 53 146 221 338 5317 1627 846 1121 888 923 Core 3715 | . 31 152 39 . 511 . 133 32 . . 5 303 . 26 30 41 . 30 488 . 174 32 23 . 12 24 95 1027 137 89 160 78 43 Absorbed by Shields 5642 | . . . . . 13 . . . . . . . . . . . . . . . . . 18 . . 40 315 2335 894 76 878 573 500 Redirected to Shielding 367 | . . . . . . . . . . . . 30 . . . . . 54 98 . . . . . . . . 101 . . . 77 7 Ignored by Resistances 1203 | . . . . . . . . . . . . . . . . . . . . . . . . . . . . 220 230 128 327 227 71 Regen/Repaired (Parts) 4355 | . . . . . . . 158 . . . . 140 39 . . . . . 88 . . . . . . . . 1265 697 393 615 526 434 Core Remaining (%) 47 | 100 . . . 11 . . . . . . 19 . . . . . . 57 . . . . . . 36 . . 2 . 84 . . 69 Volleys Fired 296 | 32 56 58 . . . . 1 5 . . . 1 . . . . . 4 5 . 29 6 5 1 4 6 9 31 5 13 4 21 . Largest 2 | 2 2 2 . . . . 1 1 . . . 1 . . . . . 1 1 . 1 1 1 1 1 1 1 1 1 1 1 1 . Hottest 200 | 40 60 160 . . . . 43 43 . . . 43 . . . . . 43 105 . 105 51 51 51 51 51 51 70 70 54 70 200 . Shots Fired 414 | 64 99 92 . . . . 1 5 . . . 1 . . . . . 4 4 . 34 9 5 2 4 6 9 31 5 13 4 22 . Gun 111 | 64 44 . . . . . . . . . . . . . . . . . . . . . . . . . . 3 . . . . . Cannon 241 | . 42 78 . . . . . . . . . . . . . . . . 4 . 33 7 5 2 1 6 9 17 3 13 . 21 . Launcher 59 | . 13 14 . . . . 1 5 . . . 1 . . . . . 4 . . 1 . . . 3 . . 11 2 . 4 . . Special 3 | . . . . . . . . . . . . . . . . . . . . . . 2 . . . . . . . . . 1 . Kinetic 247 | 64 86 14 . . . . . . . . . . . . . . . . . . . 6 5 2 1 6 9 20 3 13 . 18 . Thermal 105 | . . 64 . . . . . . . . . . . . . . . . 4 . 33 1 . . . . . . . . . 3 . Explosive 59 | . 13 14 . . . . 1 5 . . . 1 . . . . . 4 . . 1 . . . 3 . . 11 2 . 4 . . Electromagnetic . | . . . . . . . . . . . . . . . . . . . . . . . . . . . . . . . . . . Robot Hit Streak 15 | 6 6 14 . . . . 1 3 . . . . . . . . . . . . 3 5 . 6 9 . 12 15 . . . 1 . Robot Miss Streak 4 | 3 4 4 . . . . . . . . . 1 . . . . . 3 . . 1 . . . . . 2 . . . . 1 . Penetration Max . | . . . . . . . . . . . . . . . . . . . . . . . . . . . . . . . . . . Secondary Targets 1 | . 1 . . . . . . . . . . . . . . . . . . . . . . . . . . . . . . . . Max Gunslinging Chain 1 | . 1 . . . . . . . . . . . . . . . . . . . . . . . . . . . . . . . . Autonomous 67 | . . . . . . . . . . . . . . . . 6 . . 12 . 6 1 2 . 1 1 5 16 5 1 4 1 6 Shots Hit Robots 1236 | 43 54 54 1 . 182 . 65 16 . . 9 75 . 32 5 9 5 3 135 . 56 38 13 8 13 30 30 127 48 38 51 86 10 Core Hits 632 | 14 33 26 . . 63 . 33 15 . . 5 30 . 15 1 10 2 10 66 . 31 20 7 3 32 12 16 72 34 15 30 26 11 Critical Kills . | . . . . . . . . . . . . . . . . . . . . . . . . . . . . . . . . . . Critical Parts Destroyed . | . . . . . . . . . . . . . . . . . . . . . . . . . . . . . . . . . . Critical Strikes 28 | . 1 . . . . . 4 . . . . 2 . . . . . . 2 . 2 1 . 3 . 2 1 2 2 . 2 4 . Blast 4 | . 1 . . . . . . . . . . . . . . . . . . . . 1 . 1 . . 1 . . . . . . Melee Attacks 1573 | . . 6 2 . 236 . 106 21 . 1 11 113 . 50 7 14 5 8 199 . 94 36 21 10 12 45 41 149 86 48 101 129 22 Impact . | . . . . . . . . . . . . . . . . . . . . . . . . . . . . . . . . . . Slashing 1564 | . . 6 2 . 236 . 106 19 . 1 11 108 . 50 7 14 5 8 198 . 94 36 21 9 12 45 41 149 86 48 101 129 22 Piercing . | . . . . . . . . . . . . . . . . . . . . . . . . . . . . . . . . . . Sneak Attacks 185 | . . . 1 . 27 . 15 3 . . 3 20 . 15 . 3 . 1 23 . 19 5 . 6 2 7 1 13 8 6 5 2 . Combat Hostiles 40 | . . . 1 . 3 . 2 1 . . 1 3 . . . 3 . . 1 . 4 2 . 1 . 2 . 4 8 . 4 . . Follow-up Attacks 32 | . . . . . 1 . 1 . . . . 3 . . . 2 1 . 6 . 1 2 4 . . . . 8 2 . . . 1 Martial Strikes 53 | . . . . . . . . . . . . . . . . . . . . . . . . . . . . . 25 5 17 6 . Damage Inflicted 97031 | 373 1187 1700 89 . 9091 . 3799 1192 . . 550 3896 . 2086 225 1231 521 709 11027 . 5900 2909 952 959 3181 2492 2989 14745 5944 4026 6046 7876 1336 Guns 654 | 373 213 . . . . . . . . . . . . . . . . . . . . . . . . . . 68 . . . . . Cannons 7929 | . 472 1253 . . . . . . . . . . . . . 559 . . 1026 . 623 243 156 33 72 110 536 1427 411 97 307 99 505 Explosions 9259 | . 502 417 . . . . 287 623 . . . 85 . . . . . 442 . . 461 . . . 2246 . . 2015 1078 . 1103 . . Melee 79189 | . . 30 89 . 9091 . 3512 569 . . 550 3811 . 2086 225 672 521 267 10001 . 4816 2666 796 926 863 2382 2453 11235 4455 3929 4636 7777 831 Ramming . | . . . . . . . . . . . . . . . . . . . . . . . . . . . . . . . . . . Kinetic 1617 | 373 685 191 . . . . . . . . . . . . . . . . . . . 149 . 33 . . 118 68 . . . . . Thermal 1297 | . . 1062 . . . . . . . . . . . . . . . . . . 106 . . . 129 . . . . . . . . Explosive 8083 | . 502 417 . . . . 287 623 . . . 85 . . . . . 442 . . 461 . . . 1070 . . 2015 1078 . 1103 . . Electromagnetic 1047 | . . . . . . . . . . . . . . . . . . . . . . . . . 1047 . . . . . . . . Impact . | . . . . . . . . . . . . . . . . . . . . . . . . . . . . . . . . . . Slashing 79189 | . . 30 89 . 9091 . 3512 569 . . 550 3811 . 2086 225 672 521 267 10001 . 4816 2666 796 926 863 2382 2453 11235 4455 3929 4636 7777 831 Piercing . | . . . . . . . . . . . . . . . . . . . . . . . . . . . . . . . . . . Phasic 5798 | . . . . . . . . . . . . . . . . 559 . . 1026 . 517 94 156 . 72 110 418 1427 411 97 307 99 505 Highest Corruption 26 | . . . . . 4 2 1 1 1 1 . 16 16 6 6 6 6 6 10 10 13 13 13 9 11 1 1 26 . 1 5 14 4 Average Corruption 6 | . . . . . 1 1 1 1 1 1 . 10 10 6 6 6 6 6 5 10 9 13 9 5 1 1 1 11 . 1 2 9 4 Corruption Purged 53 | . . . . . 4 2 . . . . . . 10 . . . . . . . 10 . 4 9 . . . . . . . 14 . Corruption Blocked 10 | . . . . . . . . . . . . . . . . . . . . . 10 . . . . . . . . . . . . Effects 399 | . . . . . 12 . 8 8 1 . . 42 11 26 7 11 1 13 47 3 55 33 10 5 1 1 5 57 . 3 6 31 2 Message Errors 95 | . . . . . 3 . 2 1 . . . 12 2 6 1 3 . 1 18 . 15 9 1 . . . 1 9 . 1 3 7 . Matter Fused 88 | . . . . . 2 . . 2 1 . . 5 2 5 1 . . 3 11 . 11 5 6 3 1 . 1 16 . . 1 11 1 Heat Flow Errors 58 | . . . . . 2 . . 1 . . . 12 1 4 . 2 . 2 9 1 5 4 1 1 . 1 1 6 . 1 . 4 . Energy Discharges 53 | . . . . . 3 . 1 1 . . . 3 2 3 3 2 1 4 4 2 6 2 2 . . . 1 7 . . . 5 1 Parts Rejected 3 | . . . . . . . 1 . . . . . . 1 . . . . . . . . . . . . . . . . 1 . . Parts Fused 6 | . . . . . 1 . . . . . . 1 . . . . . . . . 4 . . . . . . . . . . . . Data Loss (minor) 43 | . . . . . 1 . 2 1 . . . 5 2 4 1 2 . 3 . . 5 5 . . . . . 7 . 1 1 3 . Data Loss (major) 12 | . . . . . . . 1 2 . . . . . 2 1 1 . . 1 . 1 . . . . . 1 2 . . . . . Misfires 11 | . . . . . . . . . . . . . . . . . . . . . 5 3 . 1 . . . 1 . . . 1 . Alerts 7 | . . . . . . . 1 . . . . . 2 1 . 1 . . 1 . . 1 . . . . . . . . . . . Misdirections 21 | . . . . . . . . . . . . 4 . . . . . . 2 . 3 4 . . . . . 8 . . . . . Weapon Failures 2 | . . . . . . . . . . . . . . . . . . . 1 . . . . . . . . 1 . . . . . Overload Shots . | . . . . . . . . . . . . . . . . . . . . . . . . . . . . . . . . . . Overflow Damage 11093 | . . 57 59 . 784 . 449 36 . . 132 564 . 346 12 58 247 107 1488 . 1333 255 7 146 152 207 299 1706 553 459 1095 491 51 Projectiles 406 | . . 21 . . . . . . . . . . . . . 20 . . . . 93 39 3 . 17 . 43 50 10 . 59 . 51 Explosions 553 | . . 36 . . . . . 10 . . . . . . . . . 9 . . 52 . . . 82 . . 101 123 . 140 . . Melee 10134 | . . . 59 . 784 . 449 26 . . 132 564 . 346 12 38 247 98 1488 . 1188 216 4 146 53 207 256 1555 420 459 896 491 . Knockbacks 8 | . 6 1 . . . . . . . . . . . . . . . . . . . . . . . . 1 . . . . . . Impact . | . . . . . . . . . . . . . . . . . . . . . . . . . . . . . . . . . . Kinetic 8 | . 6 1 . . . . . . . . . . . . . . . . . . . . . . . . 1 . . . . . . Secondary . | . . . . . . . . . . . . . . . . . . . . . . . . . . . . . . . . . . Self-Inflicted Damage 580 | . 30 37 . . . . . . . . . . . . . . . 31 . . . . . . 61 . . 323 . . 98 . . Shots 11 | . 1 1 . . . . . . . . . . . . . . . 1 . . . . . . 1 . . 6 . . 1 . . Rammed . | . . . . . . . . . . . . . . . . . . . . . . . . . . . . . . . . . . Targets Rammed . | . . . . . . . . . . . . . . . . . . . . . . . . . . . . . . . . . . Kicked . | . . . . . . . . . . . . . . . . . . . . . . . . . . . . . . . . . . Crushed . | . . . . . . . . . . . . . . . . . . . . . . . . . . . . . . . . . . Highest Temperature 345 | . 27 225 4 . 188 . . 259 . . 5 283 197 263 40 288 2 143 265 238 334 197 . 99 7 172 100 200 142 345 . 267 . Average Temperature 53 | . 12 70 4 . 82 . . 128 . . 5 108 23 37 19 36 1 43 23 124 86 74 . 62 7 89 73 91 27 71 . 95 . Received Heat Transfer 3269 | . 90 366 54 . 1163 . 147 84 . . 66 201 . 45 . 36 . 21 183 . 75 66 36 9 . 13 59 323 137 13 50 17 15 Effects 1 | . . . . . . . . . . . . . . . . . . . . . 1 . . . . . . . . . . . . Matter Decay 1 | . . . . . . . . . . . . . . . . . . . . . 1 . . . . . . . . . . . . Siege Activations . | . . . . . . . . . . . . . . . . . . . . . . . . . . . . . . . . . . Martial Activations . | . . . . . . . . . . . . . . . . . . . . . . . . . . . . . . . . . . Shielding Activations . | . . . . . . . . . . . . . . . . . . . . . . . . . . . . . . . . . . Robots Disrupted 5 | . . . . . 2 . . . . . . . . 1 . . . . . . . . . . . . . 2 . . . . . Combat Hostiles 1 | . . . . . 1 . . . . . . . . . . . . . . . . . . . . . . . . . . . . Robots Corrupted 2 | . . . . . . . . . . . . . . . . . . . . . . . . . 2 . . . . . . . . Combat Hostiles . | . . . . . . . . . . . . . . . . . . . . . . . . . . . . . . . . . . Parts Fried 4 | . . . . . . . . . . . . . . . . . . . . . . . . . 4 . . . . . . . . Impact Corruptions . | . . . . . . . . . . . . . . . . . . . . . . . . . . . . . . . . . . Robots Melted . | . . . . . . . . . . . . . . . . . . . . . . . . . . . . . . . . . . Combat Hostiles . | . . . . . . . . . . . . . . . . . . . . . . . . . . . . . . . . . . Parts Melted 7 | . . 4 . . . . . . . . . 1 . . . . . . . . . . . . . 2 . . . . . . . Heat Transferred 1567 | . . 1406 . . . . . . . . . . . . . . . . . . 111 . . . 50 . . . . . . . . Parts Sabotaged 3 | . . . . . . . . . . . . . . . . . . . 3 . . . . . . . . . . . . . . Parts Stolen . | . . . . . . . . . . . . . . . . . . . . . . . . . . . . . . . . . . Parts Stripped 90 | . . . . . . . . . . . . . . . . . . . 28 . . 13 . . . 3 . 22 . 24 . . . Power Chain Reactions 1 | . . . . . . . . . . . . . . . . . . . . . . . . . 1 . . . . . . . . Alert | -11 -10 -10 -9 -9 -6 -6 -6 -6 -6 -6 -5 -5 -5 -5 -5 -5 -5 -4 -4 -4 -4 -4 -4 -4 -4 -3 -3 -3 -2 -2 -1 -1 -1 ------- Run | Yrd Mat Sub Rec Scr Fac Was Fac Low Low Zio Pro Fac Was Fac Upp Upp Zhi Pro Fac Was Fac Ext Cet Arc Hub Res Qua Frg Res Tes Acc Com Ac0 Maximum Alert Level 4 | . 1 . . . 2 1 2 . . . . 1 . 2 . . . . 3 1 2 1 2 1 4 2 2 4 4 3 4 3 . Low Security (%) 33 | 100 77 . 100 . 61 65 44 . . . . 89 100 6 . . . . 22 . 14 28 2 42 11 1 7 25 . . . . . Level 1 27 | . 22 . . . 17 34 39 . . . . 10 . 69 . . . . 29 100 40 71 75 57 23 82 71 8 . . 10 . . Level 2 17 | . . . . . 20 . 15 . . . . . . 24 . . . . 24 . 44 . 22 . 24 16 20 32 19 . 47 7 . Level 3 20 | . . . . . . . . . . . . . . . . . . . 23 . . . . . 30 . . 33 59 100 37 92 . Level 4 1 | . . . . . . . . . . . . . . . . . . . . . . . . . 10 . . . 20 . 3 . . Level 5 . | . . . . . . . . . . . . . . . . . . . . . . . . . . . . . . . . . . High Security . | . . . . . . . . . . . . . . . . . . . . . . . . . . . . . . . . . . Max Security . | . . . . . . . . . . . . . . . . . . . . . . . . . . . . . . . . . . Peak Influence 1356 | 10 252 . 45 . 607 211 486 . . . . 219 67 502 . . . . 1043 365 597 393 429 350 1356 434 495 1116 1349 976 1121 728 . Initial 753 | . . . 38 . . 211 112 . . . . 31 67 . . . . . 300 365 227 291 176 167 34 386 229 24 627 753 532 709 . Average 334 | . 85 . 20 . 192 186 233 . . . . 98 16 310 . . . . 460 347 361 237 327 220 563 334 326 493 923 831 658 694 . Influence Increases 21105 | 35 579 305 47 . 1546 . 954 791 . . 300 820 . 1103 30 250 10 145 2039 . 1356 1074 413 281 2073 691 493 2028 1382 502 1447 296 115 Destroy 0b10 Robot/C 8340 | . 280 240 . . 680 . 320 560 . . 80 280 . 500 20 220 . 120 840 . 380 420 160 80 420 80 220 1000 600 200 560 80 . Destroy 0b10 Robot/NC 1135 | 35 50 . . . 135 . 75 5 . . 10 70 . 85 . . 10 15 170 . 100 55 10 25 75 40 20 45 20 25 35 25 . Destroy Leader 1396 | . 66 20 . . 180 . 86 50 . . . 88 . 74 10 30 . 10 200 . 78 56 . . 90 42 16 98 84 26 88 4 . Allied During Kill 1504 | . . . . . . . . 176 . . . . . 242 . . . . . . . 397 166 104 419 . . . . . . . . Trap Triggered on 0b10 70 | . . . . . . . . . . . . 10 . . . . . . 20 . 40 . . . . . . . . . . . . Successful Hack 1188 | . 33 . 17 . 93 . 81 . . . . 74 . 20 . . . . 96 . 10 43 . . 16 268 70 84 99 35 149 . . Select Force Hacks 110 | . 60 . . . . . . . . . . . . . . . . . . . . . . . 50 . . . . . . . . Disable Machine 1245 | . 45 . . . 30 . 30 . . . . 30 . 30 . . . . 75 . 105 15 15 30 255 . 60 345 . 30 15 45 90 Destroy Structure 1827 | . 45 . . . 23 . 32 . . . . 58 . 62 . . . . 68 . 148 88 62 42 388 36 32 66 159 36 330 142 10 Advance Influence 300 | . . . . . . . . . . . . . . . . . . . 300 . . . . . . . . . . . . . . Partial Spotted 870 | . . . . . 105 . 60 . . . . 150 . 30 . . . . 90 . 60 . . . 105 75 30 15 75 . 60 . 15 Lose Combat Pursuer 3120 | . . 45 30 . 300 . 270 . . . 210 60 . 60 . . . . 180 . 435 . . . 255 150 45 375 345 150 210 . . Influence Decreases 21045 | 35 378 426 97 30 941 444 632 655 288 331 250 678 192 870 247 246 30 145 996 718 1086 1354 309 602 1434 1019 857 957 1157 956 1225 520 940 Entered New Map 6299 | . . 97 42 30 . 394 49 179 118 331 . 19 125 . 87 4 20 . . 678 98 304 139 252 64 351 180 21 489 588 355 400 885 Time Decay 8416 | 35 378 309 45 . 495 50 553 356 170 . 250 459 67 440 160 222 10 145 636 40 498 350 130 310 190 368 172 532 318 198 410 120 . Lost Part 830 | . . 20 10 . 160 . 30 . . . . 90 . . . 20 . . 200 . 40 . . . . . . 170 50 20 . . 20 Lost Ally 1085 | . . . . . 140 . . 120 . . . 20 . 280 . . . . 10 . . 100 40 40 280 . 10 . . . 10 . 35 Purge Threat 4415 | . . . . . 146 . . . . . . 90 . 150 . . . . 150 . 450 600 . . 900 300 495 234 300 150 450 . . Squads Dispatched 153 | . 3 . . . 24 . 16 . . . . 14 . 12 . . . . 18 . 9 1 . . 8 13 2 9 8 4 10 2 . Investigation 63 | . 2 . . . 9 . 11 . . . . 6 . 6 . . . . 6 . 5 1 . . 2 10 1 2 1 . 1 . . Extermination 37 | . . . . . 6 . 3 . . . . 4 . 2 . . . . 6 . 3 . . . 1 1 1 3 3 . 4 . . Reinforcement 37 | . 1 . . . 9 . 2 . . . . 2 . 4 . . . . 5 . 1 . . . 5 2 . 3 . 2 1 . . Assault 16 | . . . . . . . . . . . . 2 . . . . . . 1 . . . . . . . . 1 4 2 4 2 . Garrison . | . . . . . . . . . . . . . . . . . . . . . . . . . . . . . . . . . . Intercept . | . . . . . . . . . . . . . . . . . . . . . . . . . . . . . . . . . . Searches Triggered . | . . . . . . . . . . . . . . . . . . . . . . . . . . . . . . . . . . Construction Impeded 3 | . . . . . . . . . . . . . . 1 . . . . . . . . . . 2 . . . . . . . . Haulers Reinforced 10 | . . . . . 3 . 1 . . . . 1 . 1 . . . . 1 . 1 . . . . 1 . . . 1 . . . Active Scanning Responses . | . . . . . . . . . . . . . . . . . . . . . . . . . . . . . . . . . . Cargo Convoy Interrupts 3 | . . . . . . . . . . . . . . 1 . . . . 1 . 1 . . . . . . . . . . . . Stealth | -11 -10 -10 -9 -9 -6 -6 -6 -6 -6 -6 -5 -5 -5 -5 -5 -5 -5 -4 -4 -4 -4 -4 -4 -4 -4 -3 -3 -3 -2 -2 -1 -1 -1 --------- Run | Yrd Mat Sub Rec Scr Fac Was Fac Low Low Zio Pro Fac Was Fac Upp Upp Zhi Pro Fac Was Fac Ext Cet Arc Hub Res Qua Frg Res Tes Acc Com Ac0 Distress Signals 75 | . . . . . 9 . 2 . . . . 2 . . . . . . 4 . 2 1 2 . 5 7 1 3 3 3 4 27 . Communications Jammed . | . . . . . . . . . . . . . . . . . . . . . . . . . . . . . . . . . . Distress Signals . | . . . . . . . . . . . . . . . . . . . . . . . . . . . . . . . . . . Times Spotted 831 | . 22 21 2 . 66 1 38 22 . . 14 58 . 12 1 9 . 8 81 . 57 22 6 2 16 16 25 128 71 19 60 19 35 Peak Tracking Total 31 | . 3 4 2 . 7 1 6 5 . . 6 12 . 4 1 3 . 7 8 . 10 4 5 1 17 6 12 31 20 10 11 6 25 Tactical Retreats 116 | . . 2 1 . 14 . 11 . . . 5 10 . 3 . . . . 8 . 10 . . . 4 5 1 12 8 6 9 4 3 Traps | -11 -10 -10 -9 -9 -6 -6 -6 -6 -6 -6 -5 -5 -5 -5 -5 -5 -5 -4 -4 -4 -4 -4 -4 -4 -4 -3 -3 -3 -2 -2 -1 -1 -1 ------- Run | Yrd Mat Sub Rec Scr Fac Was Fac Low Low Zio Pro Fac Was Fac Upp Upp Zhi Pro Fac Was Fac Ext Cet Arc Hub Res Qua Frg Res Tes Acc Com Ac0 Traps Triggered 52 | . 1 . . . 4 . 3 . . . . 3 . 1 . . . . 1 . 5 3 . . 1 4 3 10 2 2 4 5 . Indirectly . | . . . . . . . . . . . . . . . . . . . . . . . . . . . . . . . . . . Trap Hack Attempts . | . . . . . . . . . . . . . . . . . . . . . . . . . . . . . . . . . . Triggered . | . . . . . . . . . . . . . . . . . . . . . . . . . . . . . . . . . . Disarmed . | . . . . . . . . . . . . . . . . . . . . . . . . . . . . . . . . . . Reprogrammed . | . . . . . . . . . . . . . . . . . . . . . . . . . . . . . . . . . . Reused 10 | . . . . . . . . . . . 3 1 . . . . . . 2 . 4 . . . . . . . . . . . . Traps Extracted 4 | . . . . . . . . . . . 3 1 . . . . . . . . . . . . . . . . . . . . . Installed 11 | . . . . . . . . . . . 3 2 . . . . . . 2 . 4 . . . . . . . . . . . . Triggered 10 | . . . . . . . . . . . 3 1 . . . . . . 2 . 4 . . . . . . . . . . . . Most Traps Carried 7 | . . . . . . . . 1 1 1 7 7 6 6 6 6 6 6 6 4 4 . . . . . . . . . . . . Objects Rigged 3 | . . . . . . . . . . . . . . . . . . . . . . . . . 3 . . . . . . . . Exploded 1 | . . . . . . . . . . . . . . . . . . . . . . . . . 1 . . . . . . . . Machines | -11 -10 -10 -9 -9 -6 -6 -6 -6 -6 -6 -5 -5 -5 -5 -5 -5 -5 -4 -4 -4 -4 -4 -4 -4 -4 -3 -3 -3 -2 -2 -1 -1 -1 ---------- Run | Yrd Mat Sub Rec Scr Fac Was Fac Low Low Zio Pro Fac Was Fac Upp Upp Zhi Pro Fac Was Fac Ext Cet Arc Hub Res Qua Frg Res Tes Acc Com Ac0 Machines Disabled 94 | . 3 4 . . 2 . 2 1 . . . 2 . 2 . . . . 5 . 7 3 1 2 17 . 4 27 . 2 1 3 6 Max in Single Turn 15 | . 2 1 . . 1 . 1 . . . . 1 . 1 . . . . 1 . 3 1 1 . 15 . 1 5 . 1 1 1 1 Garrison Access 12 | . . . . . 3 . 1 . . . . 1 . 1 . . . . 1 . 1 . . . 1 1 1 1 . . . . . Network Hub 3 | . . . . . . . . . . . . . . . . . . . . . . . . . 3 . . . . . . . . Machines Repaired . | . . . . . . . . . . . . . . . . . . . . . . . . . . . . . . . . . . Machines Dismantled . | . . . . . . . . . . . . . . . . . . . . . . . . . . . . . . . . . . Machines Sabotaged 1 | . . . . . . . . . . . . . . . . . . . . . . . . . 1 . . . . . . . . Overloaded Fab Kills . | . . . . . . . . . . . . . . . . . . . . . . . . . . . . . . . . . . Hacking | -11 -10 -10 -9 -9 -6 -6 -6 -6 -6 -6 -5 -5 -5 -5 -5 -5 -5 -4 -4 -4 -4 -4 -4 -4 -4 -3 -3 -3 -2 -2 -1 -1 -1 --------- Run | Yrd Mat Sub Rec Scr Fac Was Fac Low Low Zio Pro Fac Was Fac Upp Upp Zhi Pro Fac Was Fac Ext Cet Arc Hub Res Qua Frg Res Tes Acc Com Ac0 Machines Accessed 251 | . 9 1 2 4 30 . 23 1 . . . 21 . 13 1 1 4 1 24 . 15 20 1 . 12 20 11 8 7 5 15 2 . Terminals 148 | . 7 . 2 . 12 . 10 . . . . 10 . 6 . . . 1 14 . 8 17 1 . 10 12 9 6 5 4 12 2 . Fabricators 21 | . . . . . 3 . 3 . . . . 2 . 1 . . . . 2 . 2 . . . . 3 . . 2 1 2 . . Repair Stations 12 | . . . . . 1 . 2 . . . . 3 . . . . . . 4 . . 1 . . . . . . . . 1 . . Recycling Units 38 | . 2 . . . 8 . 7 . . . . 4 . 5 . . . . 3 . 4 2 . . . 2 . 1 . . . . . Scanalyzers 4 | . . . . . 2 . . . . . . . . . . . . . . . . . . . . 1 1 . . . . . . Garrison Access 16 | . . . . . 4 . 1 . . . . 2 . 1 . . . . 1 . 1 . . . 2 2 1 1 . . . . . Total Hacks 744 | . 29 1 7 11 64 . 49 1 . . . 52 . 27 1 1 17 3 54 . 39 45 1 . 44 101 47 48 32 17 50 3 . Successful 341 | . 15 1 2 11 21 . 21 1 . . . 25 . 10 1 1 17 3 19 . 18 23 . . 19 56 25 23 8 4 17 . . Failed 403 | . 14 . 5 . 43 . 28 . . . . 27 . 17 . . . . 35 . 21 22 1 . 25 45 22 25 24 13 33 3 . Catastrophic 96 | . 3 . 1 . 7 . 6 . . . . 5 . 4 . . . . 13 . 4 1 1 . 6 8 6 3 9 5 11 3 . Database Lockouts . | . . . . . . . . . . . . . . . . . . . . . . . . . . . . . . . . . . Manual 383 | . 24 . 6 . 34 . 36 . . . . 24 . 20 . . . . 35 . 34 20 1 . 19 53 21 25 5 9 14 3 . Terminals 511 | . 27 . 7 . 26 . 25 . . . . 27 . 13 . . . 3 35 . 26 39 1 . 42 62 42 43 29 14 47 3 . Fabricators 57 | . . . . . 8 . 5 . . . . 5 . 2 . . . . 4 . 4 . . . . 21 . . 3 3 2 . . Repair Stations 27 | . . . . . 2 . 6 . . . . 8 . . . . . . 7 . . 3 . . . . . . . . 1 . . Recycling Units 69 | . 2 . . . 15 . 12 . . . . 8 . 11 . . . . 6 . 8 3 . . . 2 . 2 . . . . . Scanalyzers 14 | . . . . . 6 . . . . . . . . . . . . . . . . . . . . 6 2 . . . . . . Garrison Access 34 | . . . . . 7 . 1 . . . . 4 . 1 . . . . 2 . 1 . . . 2 10 3 3 . . . . . Terminal Hacks 172 | . 11 1 1 11 5 . 4 1 . . . 9 . 3 1 1 17 3 6 . 7 18 . . 10 16 13 14 5 3 12 . . Record 15 | . . . . 6 . . . . . . . . . . . . 5 3 . . . . . . . . . 1 . . . . . Part Schematic 12 | . 2 . . . . . . . . . . 1 . . . . 4 . 1 . . 1 . . 1 . 1 1 . . . . . Robot Analysis 20 | . 6 . . 4 . . . . . . . 1 . . . . 4 . . . 1 2 . . 1 . 1 . . . . . . Prototype ID Bank 10 | . 2 . 1 . . . . . . . . 2 . . . . 4 . . . . . . . . 1 . . . . . . . Open Door 17 | . . . . 1 . . . 1 . . . . . . 1 1 . . . . . 8 . . . 1 . . . 1 3 . . Level Access Points 2 | . . . . . . . . . . . . . . . . . . . . . . . . . . 1 . . . . 1 . . Branch Access Points 4 | . . . . . . . 1 . . . . . . 1 . . . . . . . . . . . 1 . . 1 . . . . Machine Index 4 | . . . . . . . . . . . . 1 . . . . . . 1 . . . . . . 1 . 1 . . . . . Terminal Index 10 | . . . . . . . 1 . . . . 1 . 1 . . . . 1 . 1 . . . 1 1 1 1 . . 1 . . Garrison Index 1 | . . . . . . . . . . . . . . . . . . . . . . . . . . . . 1 . . . . . Alert Level 13 | . . . . . 1 . 1 . . . . . . . . . . . . . 1 2 . . 1 2 1 1 . . 3 . . Unreport Threat 33 | . . . . . 2 . . . . . . 2 . 1 . . . . 1 . 3 4 . . 6 2 4 2 2 1 3 . . Locate Traps 3 | . . . . . . . . . . . . . . . . . . . . . . 1 . . . 1 1 . . . . . . Surveillance Status 1 | . . . . . . . . . . . . . . . . . . . . . . . . . . . . 1 . . . . . Patrol Status 3 | . . . . . . . . . . . . . . . . . . . 1 . . . . . . . . 2 . . . . . Recall Investigation 1 | . . . . . . . . . . . . . . . . . . . . . . . . . . . 1 . . . . . . Hauler Manifests 8 | . 1 . . . 1 . . . . . . 1 . . . . . . 1 . 1 . . . . 1 . . 1 . 1 . . Registered Components 3 | . . . . . 1 . . . . . . . . . . . . . . . . . . . . 1 . . 1 . . . . Registered Prototypes 2 | . . . . . . . . . . . . . . . . . . . . . . . . . . 1 1 . . . . . . Zone Layout 7 | . . . . . . . 1 . . . . . . . . . . . . . . . . . . 2 2 2 . . . . . Proto ID Catalog 2 | . . 1 . . . . . . . . . . . . . . . . . . . . . . . . . 1 . . . . . Protovariant Controls 1 | . . . . . . . . . . . . . . . . . . . . . . . . . . . . . . 1 . . . Fabricator Hacks 15 | . . . . . . . . . . . . 2 . . . . . . 1 . 2 . . . . 9 . . 1 . . . . Network Status 1 | . . . . . . . . . . . . . . . . . . . . . . . . . . 1 . . . . . . . Load Schematic 8 | . . . . . . . . . . . . 1 . . . . . . 1 . 1 . . . . 5 . . . . . . . Build 6 | . . . . . . . . . . . . 1 . . . . . . . . 1 . . . . 3 . . 1 . . . . Repair Station Hacks 10 | . . . . . . . 2 . . . . 3 . . . . . . 4 . . 1 . . . . . . . . . . . Scan Component 7 | . . . . . . . 1 . . . . 2 . . . . . . 3 . . 1 . . . . . . . . . . . Repair 3 | . . . . . . . 1 . . . . 1 . . . . . . 1 . . . . . . . . . . . . . . Recycling Unit Hacks . | . . . . . . . . . . . . . . . . . . . . . . . . . . . . . . . . . . Scanalyzer 8 | . . . . . 3 . . . . . . . . . . . . . . . . . . . . 3 2 . . . . . . Insert Component 5 | . . . . . 2 . . . . . . . . . . . . . . . . . . . . 1 2 . . . . . . Analyze 3 | . . . . . 1 . . . . . . . . . . . . . . . . . . . . 2 . . . . . . . Garrison Access Hacks 11 | . . . . . 3 . 1 . . . . . . 1 . . . . 1 . 1 . . . 1 1 1 1 . . . . . Seal Access 11 | . . . . . 3 . 1 . . . . . . 1 . . . . 1 . 1 . . . 1 1 1 1 . . . . . Unauthorized Hacks 125 | . 4 . 1 . 10 . 14 . . . . 11 . 6 . . . . 7 . 8 4 . . 8 27 9 8 2 1 5 . . Terminals 73 | . 2 . 1 . 2 . 5 . . . . 4 . 2 . . . . 5 . 4 3 . . 8 13 9 7 2 1 5 . . Track 11 | . . . . . . . 1 . . . . . . . . . . . 1 . . . . . 1 2 2 4 . . . . . Assimilate 4 | . . . . . . . . . . . . . . . . . . . 1 . . . . . . . 1 . . . 2 . . Botnet 49 | . 2 . 1 . 2 . 3 . . . . 3 . 2 . . . . 3 . 4 3 . . 3 9 6 3 2 1 2 . . Detonate 2 | . . . . . . . . . . . . . . . . . . . . . . . . . 2 . . . . . . . . Operators 5 | . . . . . . . 1 . . . . 1 . . . . . . . . . . . . . 2 . . . . 1 . . Sabotage 2 | . . . . . . . . . . . . . . . . . . . . . . . . . 2 . . . . . . . . Fabricators 14 | . . . . . 2 . 2 . . . . 1 . . . . . . 1 . 1 . . . . 7 . . . . . . . Report 2 | . . . . . . . . . . . . 1 . . . . . . . . . . . . . 1 . . . . . . . Prioritize 2 | . . . . . . . . . . . . . . . . . . . . . . . . . . 2 . . . . . . . Liberate 2 | . . . . . 1 . . . . . . . . . . . . . . . . . . . . 1 . . . . . . . Haulers 2 | . . . . . 1 . 1 . . . . . . . . . . . . . . . . . . . . . . . . . . Recompile 6 | . . . . . . . 1 . . . . . . . . . . . 1 . 1 . . . . 3 . . . . . . . Repair Stations 4 | . . . . . . . 2 . . . . 2 . . . . . . . . . . . . . . . . . . . . . Patch 4 | . . . . . . . 2 . . . . 2 . . . . . . . . . . . . . . . . . . . . . Recycling Units 29 | . 2 . . . 6 . 5 . . . . 4 . 4 . . . . 1 . 3 1 . . . 2 . 1 . . . . . Tunnel 2 | . 2 . . . . . . . . . . . . . . . . . . . . . . . . . . . . . . . . Fedlink 27 | . . . . . 6 . 5 . . . . 4 . 4 . . . . 1 . 3 1 . . . 2 . 1 . . . . . Scanalyzers . | . . . . . . . . . . . . . . . . . . . . . . . . . . . . . . . . . . Garrison Access 5 | . . . . . . . . . . . . . . . . . . . . . . . . . . 5 . . . . . . . Broadcast 1 | . . . . . . . . . . . . . . . . . . . . . . . . . . 1 . . . . . . . Redirect 1 | . . . . . . . . . . . . . . . . . . . . . . . . . . 1 . . . . . . . Reprogram 1 | . . . . . . . . . . . . . . . . . . . . . . . . . . 1 . . . . . . . Intercept 1 | . . . . . . . . . . . . . . . . . . . . . . . . . . 1 . . . . . . . Watchers 1 | . . . . . . . . . . . . . . . . . . . . . . . . . . 1 . . . . . . . Data Cores Recovered 13 | . . . . . 1 . . . . . . 1 . 1 . . . . 2 . . . . . . . 1 2 2 . 2 1 . Used 6 | . . . . . . . . . . . . . . . . . . . . . . . . . . . 1 2 . . 2 1 . Hacking Detections 191 | . 7 . 2 . 21 . 17 . . . . 18 . 10 . . . 1 23 . 11 15 2 . 10 12 10 6 7 4 13 2 . Full Trace Events 14 | . . . . . 3 . 2 . . . . . . 1 . . . . 4 . 1 . . . . 2 . . . . 1 . . Feedback Events 2 | . . . . . 1 . . . . . . . . . . . . . . . . . . . . 1 . . . . . . . Corruption 2 | . . . . . 1 . . . . . . . . . . . . . . . . . . . . 1 . . . . . . . Feedback Blocked . | . . . . . . . . . . . . . . . . . . . . . . . . . . . . . . . . . . Robot Schematics Acquired 8 | . . . . . . . . . . 4 . . . . . . . . . . . . . . . . 2 . . 2 . . . Robots Built . | . . . . . . . . . . . . . . . . . . . . . . . . . . . . . . . . . . Authchips . | . . . . . . . . . . . . . . . . . . . . . . . . . . . . . . . . . . Time . | . . . . . . . . . . . . . . . . . . . . . . . . . . . . . . . . . . Total Robot Build Rating . | . . . . . . . . . . . . . . . . . . . . . . . . . . . . . . . . . . Part Schematics Acquired 46 | . 2 . . . 1 . . . . 15 . 1 . . . . 4 . 1 . . 1 . . 1 1 5 9 . 5 . . . Parts Built 11 | . . . . . . . . . . . . 2 . . . . . . . . 2 . . . . 5 . . 2 . . . . Authchips 4 | . . . . . . . . . . . . 1 . . . . . . . . 1 . . . . 2 . . . . . . . Time 338 | . . . . . . . . . . . . 42 . . . . . . . . 47 . . . . 203 . . 46 . . . . Total Part Build Rating 77 | . . . . . . . . . . . . 8 . . . . . . . . 10 . . . . 41 . . 18 . . . . Parts Repaired 3 | . . . . . . . 1 . . . . 1 . . . . . . 1 . . . . . . . . . . . . . . Time 220 | . . . . . . . 70 . . . . 100 . . . . . . 50 . . . . . . . . . . . . . . Parts Recycled . | . . . . . . . . . . . . . . . . . . . . . . . . . . . . . . . . . . Recycled Matter . | . . . . . . . . . . . . . . . . . . . . . . . . . . . . . . . . . . Retrieved Matter . | . . . . . . . . . . . . . . . . . . . . . . . . . . . . . . . . . . Retrieved Components . | . . . . . . . . . . . . . . . . . . . . . . . . . . . . . . . . . . Parts Scanalyzed 3 | . . . . . 2 . . . . . . . . . . . . . . . . . . . . 1 . . . . . . . Part Schematics Acquired 2 | . . . . . 1 . . . . . . . . . . . . . . . . . . . . 1 . . . . . . . Parts Damaged . | . . . . . . . . . . . . . . . . . . . . . . . . . . . . . . . . . . Bothacking | -11 -10 -10 -9 -9 -6 -6 -6 -6 -6 -6 -5 -5 -5 -5 -5 -5 -5 -4 -4 -4 -4 -4 -4 -4 -4 -3 -3 -3 -2 -2 -1 -1 -1 ------------ Run | Yrd Mat Sub Rec Scr Fac Was Fac Low Low Zio Pro Fac Was Fac Upp Upp Zhi Pro Fac Was Fac Ext Cet Arc Hub Res Qua Frg Res Tes Acc Com Ac0 Used RIF Installer . | . . . . . . . . . . . . . . . . . . . . . . . . . . . . . . . . . . Robots Hacked 7 | . . . . . . . . . . . . 3 . . . . . . . . . 2 . 1 . . . . . . . 1 . Non-combat 3 | . . . . . . . . . . . . 2 . . . . . . . . . . . 1 . . . . . . . . . Combat 1 | . . . . . . . . . . . . 1 . . . . . . . . . . . . . . . . . . . . . Robot Hacks Applied 4 | . . . . . . . . . . . . 3 . . . . . . . . . . . 1 . . . . . . . . . parse_system 1 | . . . . . . . . . . . . 1 . . . . . . . . . . . . . . . . . . . . . find_chute 2 | . . . . . . . . . . . . 2 . . . . . . . . . . . . . . . . . . . . . check_alert 1 | . . . . . . . . . . . . . . . . . . . . . . . . 1 . . . . . . . . . Manual 3 | . . . . . . . . . . . . . . . . . . . . . . 2 . . . . . . . . . 1 . Relay Couplers Released 7 | . . . . . . . . . . . . 5 . . . . . . . . . . . . 2 . . . . . . . . Machine Destruction 4 | . . . . . . . . . . . . 2 . . . . . . . . . . . . 2 . . . . . . . . Programmers 3 | . . . . . . . . . . . . 3 . . . . . . . . . . . . . . . . . . . . . Fabnet Peak Effective % . | . . . . . . . . . . . . . . . . . . . . . . . . . . . . . . . . . . Robots Rewired 10 | . . . . . . . . 1 . . . 1 . . . . . . . . . 8 . . . . . . . . . . . Allies Hacked 1 | . . . . . . . . . . . . . . 1 . . . . . . . . . . . . . . . . . . . Hacks Repelled . | . . . . . . . . . . . . . . . . . . . . . . . . . . . . . . . . . . Allies | -11 -10 -10 -9 -9 -6 -6 -6 -6 -6 -6 -5 -5 -5 -5 -5 -5 -5 -4 -4 -4 -4 -4 -4 -4 -4 -3 -3 -3 -2 -2 -1 -1 -1 -------- Run | Yrd Mat Sub Rec Scr Fac Was Fac Low Low Zio Pro Fac Was Fac Upp Upp Zhi Pro Fac Was Fac Ext Cet Arc Hub Res Qua Frg Res Tes Acc Com Ac0 Total Allies 63 | . . . . . 6 . . 6 . . . 1 20 . . . . . 1 . . 22 5 . . . 1 . . . 1 . . Largest Group 20 | . . . . . 3 . . 5 . . . 1 20 20 . . . . 1 . . 16 20 19 15 . 1 . . . 1 . . Highest-Rated Group 1379 | . . . . . 87 . . 238 . . . 49 747 747 . . . . 10 . . 937 1379 1333 1070 . 26 . . . 45 . . Highest-Rated Ally 159 | . . . . . 29 . . 50 . . . 49 50 50 . . . . 10 . . 159 159 159 116 . 26 . . . 45 . . Total Orders 15 | . . . . . 6 . . . . . . . . . . . . . . . . . . . . . . . . . . . 9 EXPLORE 14 | . . . . . 6 . . . . . . . . . . . . . . . . . . . . . . . . . . . 8 RETURN 1 | . . . . . . . . . . . . . . . . . . . . . . . . . . . . . . . . . 1 Ally Attacks 557 | . . . . . 24 . . 132 . . . 1 . 142 . . . . . . . 63 37 35 92 . . . . . . . 31 Total Damage 17460 | . . . . . 474 . . 2917 . . . 24 . 3755 . . . . . . . 3013 1450 1286 3323 . . . . . . . 1218 Kills 99 | . . . . . 1 . . 25 . . . . . 30 . . . . . . . 14 6 5 17 . . . . . . . 1 Allies Corrupted 4 | . . . . . . . . 1 . . . . . 1 . . . . . . . . . . 2 . . . . . . . . Allies Melted 1 | . . . . . 1 . . . . . . . . . . . . . . . . . . . . . . . . . . . . Intel | -11 -10 -10 -9 -9 -6 -6 -6 -6 -6 -6 -5 -5 -5 -5 -5 -5 -5 -4 -4 -4 -4 -4 -4 -4 -4 -3 -3 -3 -2 -2 -1 -1 -1 ------- Run | Yrd Mat Sub Rec Scr Fac Was Fac Low Low Zio Pro Fac Was Fac Upp Upp Zhi Pro Fac Was Fac Ext Cet Arc Hub Res Qua Frg Res Tes Acc Com Ac0 Active Infowar (turns) 26868 | 40 1371 2720 155 1763 2385 115 1387 797 348 311 534 1557 315 1049 338 462 108 585 2255 88 1300 762 240 693 386 841 378 1129 700 401 992 223 140 Optics 11322 | . . . . . 1108 . . . . . . . . 136 338 462 108 585 2214 60 1169 690 240 693 386 841 362 856 241 165 517 151 . Sensors 8675 | . . . . . 1466 115 1284 797 348 311 534 1551 315 1049 332 447 108 18 . . . . . . . . . . . . . . . Terrain 26 | 24 . . . . . . . . . . . . . . . . . . 2 . . . . . . . . . . . . . . Structural 10487 | . . . . . 491 103 546 . . . . 848 . 836 335 448 90 537 1656 88 863 90 . . 72 791 329 258 700 343 923 . 140 Traps 57 | . . . . . . . 57 . . . . . . . . . . . . . . . . . . . . . . . . . . Seismic 6531 | 16 1371 2720 155 1763 506 . . . . . . . . . . . . . . . . . . . . . . . . . . . . T.N.C. 404 | . . . . . . . . . . . . . . 42 . . . . 241 . 121 . . . . . . . . . . . . Cloaking 815 | . . . . . . . . . . . . . . . . . . . . . . . . . . . . 363 452 . . . . Jamming 200 | . . . . . . . . . . . . . . . . . . 4 . . . . . . . . . 196 . . . . . ECM 842 | . . . . . . . . . . . . 191 . . . . . . . . . . . . . . . . . 56 391 204 . Robot Analysis Total 20 | . 6 . . 4 . . . . . . . 1 . . . . 4 . . . 1 2 . . 1 . 1 . . . . . . Derelict Logs Recovered 15 | . . 2 . 4 . . . 1 1 1 1 . . . 1 3 . 1 . . . . . . . . . . . . . . . Drone Launches 34 | . . . . . 13 . . . . . . . . . . . . . . . . . . . . . . . . . . . 21 Drone Recoveries 10 | . . . . . 4 . . . . . . . . . . . . . . . . . . . . . . . . . . . 6 Exploration | -11 -10 -10 -9 -9 -6 -6 -6 -6 -6 -6 -5 -5 -5 -5 -5 -5 -5 -4 -4 -4 -4 -4 -4 -4 -4 -3 -3 -3 -2 -2 -1 -1 -1 ------------- Run | Yrd Mat Sub Rec Scr Fac Was Fac Low Low Zio Pro Fac Was Fac Upp Upp Zhi Pro Fac Was Fac Ext Cet Arc Hub Res Qua Frg Res Tes Acc Com Ac0 Turns Passed 30576 | 271 1371 2892 155 1775 2571 115 1607 801 348 311 580 1563 318 1093 338 462 108 585 2255 88 1339 786 277 693 386 841 378 1587 700 401 992 2263 326 Spaces Moved 43061 | 108 682 1852 117 1310 3050 294 2337 1363 901 786 983 2015 259 1651 815 943 168 737 3220 252 2516 932 276 252 691 2680 913 3133 1136 675 1591 3524 899 Core 43 | 6 . . . . . . . . . . . . . . . . . . . . . . . 37 . . . . . . . . . Treads 1205 | 102 682 421 . . . . . . . . . . . . . . . . . . . . . . . . . . . . . . . Legs 3335 | . . 1431 117 1310 477 . . . . . . . . . . . . . . . . . . . . . . . . . . . . Wheels . | . . . . . . . . . . . . . . . . . . . . . . . . . . . . . . . . . . Hover 35624 | . . . . . 2573 294 2337 1363 901 786 983 2015 259 1651 815 943 168 737 2523 . 611 932 276 215 691 2680 913 3133 1136 675 1591 3524 899 Flight 2854 | . . . . . . . . . . . . . . . . . . . 697 252 1905 . . . . . . . . . . . . Fastest Speed 15 | 50 160 130 130 130 21 33 28 35 36 38 28 27 30 30 25 35 36 31 34 34 20 20 20 20 20 20 17 15 34 35 36 33 27 Average Speed 45 | 153 160 136 130 130 48 33 36 35 37 38 37 37 30 33 35 36 37 37 42 34 30 20 20 193 21 22 22 27 40 35 36 34 30 Slowest Speed 1200 | 160 160 160 130 130 130 33 42 91 38 38 38 104 95 96 36 42 38 38 200 34 117 20 20 1200 94 98 24 104 112 115 118 119 111 Overloaded Moves 989 | . . . . . 1 . 12 . . . 4 56 . . 3 17 . 5 . . . . . . . . 52 476 . . . . 363 Propulsion Burnouts . | . . . . . . . . . . . . . . . . . . . . . . . . . . . . . . . . . . Robots Hopped 7 | . . . . . . . . . . . . . . . . . . . 1 . 6 . . . . . . . . . . . . Potential Cave-ins 5 | . . . . . . . . . . . . . . . . . . . . . . . . . . . . 2 . . . 3 . Cave-ins Triggered . | . . . . . . . . . . . . . . . . . . . . . . . . . . . . . . . . . . Teleports 4 | . . . . . . . . . . . . . . . . . . . . . . . . . . . . 2 . . . 1 1 Exploration Rate (%) 72 | 8 97 88 23 91 70 97 52 98 98 84 77 53 88 40 89 85 61 86 55 94 52 87 74 89 74 74 94 70 40 85 50 93 58 Regions Visited 33 Branch Regions 20 Pre-discovered Areas 11 | . 2 2 . 2 1 . . . . 1 . . . . . . 3 . . . . . . . . . . . . . . . . Known Exits Taken 15 | . . . . . . . 1 1 1 1 1 . . 1 1 1 1 1 . . 1 . . . 1 1 . 1 1 . . . . Unknown Exits Taken 12 | 1 1 1 1 1 . . . . . . . . . . . . . . . . . 1 1 1 . . 1 . . 1 1 1 . Scrap Searched 34 | . . 9 . 6 . . . 4 4 1 1 . . . 5 2 . 2 . . . . . . . . . . . . . . . Spaces Dug 528 | . 24 23 . . 23 . 23 22 . . . 16 . 15 2 2 . 21 33 . 62 3 11 5 2 19 13 15 70 12 66 45 1 Terrain Destroyed 1063 | . 63 80 . . 23 . 32 35 . . . 28 . 15 2 2 . 46 34 . 76 6 11 5 233 20 16 70 70 14 113 68 1 Melee 270 | . . 1 . . 23 . 23 5 . . . 16 . 15 2 2 . 3 30 . 35 1 5 3 1 14 10 9 17 4 33 17 1 Projectile 113 | . . 9 . . . . . . . . . . . . . . . . 4 . 28 5 6 2 1 6 6 13 3 10 . 20 . AOE 680 | . 63 70 . . . . 9 30 . . . 12 . . . . . 43 . . 13 . . . 231 . . 48 50 . 80 31 . Terrain Rammed . | . . . . . . . . . . . . . . . . . . . . . . . . . . . . . . . . . . Walls Destroyed . | . . . . . . . . . . . . . . . . . . . . . . . . . . . . . . . . . . Machines Disabled . | . . . . . . . . . . . . . . . . . . . . . . . . . . . . . . . . . . Actions | -11 -10 -10 -9 -9 -6 -6 -6 -6 -6 -6 -5 -5 -5 -5 -5 -5 -5 -4 -4 -4 -4 -4 -4 -4 -4 -3 -3 -3 -2 -2 -1 -1 -1 --------- Run | Yrd Mat Sub Rec Scr Fac Was Fac Low Low Zio Pro Fac Was Fac Upp Upp Zhi Pro Fac Was Fac Ext Cet Arc Hub Res Qua Frg Res Tes Acc Com Ac0 Total 52639 | 158 871 2111 118 1385 3809 312 2938 1651 906 796 1172 2682 498 2125 850 1041 208 1029 3940 254 2979 1504 480 450 917 2891 1051 3815 1358 829 2003 4562 946 Wait 6229 | 8 111 132 . 47 329 9 439 244 4 8 164 481 226 359 13 79 2 267 398 . 261 453 171 171 200 112 54 338 110 55 259 724 1 Move 43017 | 107 681 1851 116 1309 3050 293 2336 1362 900 785 982 2015 258 1650 814 942 167 736 3218 251 2504 931 275 251 690 2679 912 3132 1135 674 1590 3523 898 Hop 6 | . . . . . . . . . . . . . . . . . . . 1 . 5 . . . . . . . . . . . . Pick Up 278 | 2 9 13 . 8 43 3 12 5 . 1 2 14 2 8 3 . 7 2 25 2 14 2 2 2 1 11 5 32 10 10 9 17 2 Fast Attach 271 | 8 3 4 . 8 41 2 5 4 1 . . 14 2 14 6 . 10 . 28 . 13 1 3 6 . 3 5 34 19 9 6 19 3 Attach 122 | . . 2 . . 19 . 5 . . . . 13 3 . . 2 1 2 12 . 8 1 . . . 7 2 17 6 2 4 12 4 Detach 38 | . 2 . . 1 3 . . . . . . 5 1 1 . . 1 . 4 . 1 . . . . 3 . 2 3 1 1 8 1 Swap 276 | . 5 25 . . 15 . 25 4 . . 6 12 1 9 . 5 3 8 18 . 29 5 3 1 7 8 5 28 7 6 18 19 4 Drop 400 | 1 4 20 . 12 53 5 10 7 1 1 4 15 3 21 7 1 13 2 36 1 18 2 4 8 3 11 9 46 4 16 11 41 10 Fire 296 | 32 56 58 . . . . 1 5 . . . 1 . . . . . 4 5 . 29 6 5 1 4 6 9 31 5 13 4 21 . Melee 1477 | . . 6 2 . 235 . 105 20 . 1 11 110 . 50 7 12 4 8 193 . 93 34 17 10 12 45 41 141 59 43 84 113 21 Ram . | . . . . . . . . . . . . . . . . . . . . . . . . . . . . . . . . . . Kick . | . . . . . . . . . . . . . . . . . . . . . . . . . . . . . . . . . . Crush . | . . . . . . . . . . . . . . . . . . . . . . . . . . . . . . . . . . Escape Stasis 150 | . . . . . 7 . . . . . . . . 13 . . . . . . . 23 . . . 6 9 10 . . 17 65 . Rewire 63 | . . . . . 11 . . . . . . . 2 . . . . . . . . 46 . . . . . 4 . . . . . Trap 11 | . . . . . . . . . . . 3 2 . . . . . . 2 . 4 . . . . . . . . . . . . Miscellaneous 5 | . . . . . 3 . . . . . . . . . . . . . . . . . . . . . . . . . . . 2 Route ------- -11/Scrapyard -10/Materials (discovered 6 exits: [*Mat x3] / [*Min x2] / *Sub) -10/Subcaves (discovered 3 exits: [*Mat x2] / *Rec) -9/Recycling -9/Scraptown (discovered 2 exits: *Fac x2) -6/Factory (discovered 2 exits: *Fac / *Low) -6/Waste -6/Factory (discovered 3 exits: *Fac / *Low x2) -6/Lower Caves -6/Lower Caves (discovered 2 exits: *Fac / *Zio) -6/Zion -5/Proximity Caves -5/Factory (discovered 2 exits: *Fac / *Upp) -5/Waste -5/Factory (discovered 2 exits: *Upp x2) -5/Upper Caves -5/Upper Caves (discovered 2 exits: *Fac / *Zhi) -5/Zhirov -4/Proximity Caves -4/Factory (discovered 6 exits: *Res x3 / [*Upp x2] / *Ext) -4/Waste -4/Factory (discovered 2 exits: [*Upp] / *Ext) -4/Extension (discovered 2 exits: *Res / *Cet) -4/Cetus (discovered 2 exits: *Res / [*Arc]) -4/Archives (discovered 3 exits: *Res / *Hub x2) -4/Hub_04(d) (discovered 2 exits: *Res x2) -3/Research (discovered 6 exits: *Res x3 / *Arm / *Qua x2) -3/Quarantine (discovered 3 exits: *Res / [*Sec] / *Frg) -3/Protoforge -2/Research (discovered 3 exits: *Acc / *Tes x2) -2/Testing -1/Access (discovered 2 exits: Sur / *Com) -1/Command (discovered 2 exits: *Sur / [*Ac0]) -1/Access_0 Near Former Tau Ceti IV History --------- Turn | Location | Event 26 | -11/Scrapyard | Discovered new exit (range 16) 272 | -11/Scrapyard | Entered Materials 315 | -10/Materials | Build established: Mutant 639 | -10/Materials | Discovered new exit (range 13) 805 | -10/Materials | Discovered new exit (range 14) 911 | -10/Materials | Discovered new exit (range 8) 1033 | -10/Materials | Discovered new exit (range 10) 1223 | -10/Materials | Discovered new exit (range 6) 1394 | -10/Materials | Discovered new exit (range 14) 1643 | -10/Materials | Entered Subcaves 1691 | -10/Subcaves | Disturbed a concealed Subdweller 2221 | -10/Subcaves | A swath of the cavern ceiling suddenly collapsed 2352 | -10/Subcaves | Build established: Scavenger-Mutant 2377 | -10/Subcaves | Visited 4L-MR0's lab 2392 | -10/Subcaves | Found Cargo Legs 2393 | -10/Subcaves | Attached Cargo Legs, gained temporary slots: Utility x2 2436 | -10/Subcaves | Discovered new exit (range 16) 2438 | -10/Subcaves | Shifting Twisted Machinery released Battle Rifle 2447 | -10/Subcaves | Shifting Twisted Machinery released Mak. Sword 2694 | -10/Subcaves | Build established: Mutant 2750 | -10/Subcaves | Shifting Twisted Machinery released Mak. Spear 2750 | -10/Subcaves | Shifting Twisted Machinery released Sub. Laser 2779 | -10/Subcaves | Learned location of Zion (-6) 2779 | -10/Subcaves | Met a Zionite searching for "candidates" 3266 | -10/Subcaves | Discovered new exit (range 7) 3286 | -10/Subcaves | Build established: Scavenger-Mutant 3627 | -10/Subcaves | Learned Materials emergency access door positions 4039 | -10/Subcaves | Core integrity fell below 50% 4145 | -10/Subcaves | Discovered new exit (range 11) 4440 | -10/Subcaves | Shifting Twisted Machinery released Riot Gun 4442 | -10/Subcaves | Shifting Twisted Machinery released Sub. Power Source 4471 | -10/Subcaves | Build established: Mutant 4535 | -10/Subcaves | Entered Recycling 4617 | -9/Recycling | Core integrity fell below 20% 4659 | -9/Recycling | Scanned before Scraplab entrance 4677 | -9/Recycling | Entered Scraplab 4688 | -9/Recycling | Discovered new exit (range 3) 4690 | -9/Recycling | Entered Scraptown 4978 | -9/Scraptown | Scanned Subdweller tech in exchange for log data 4981 | -9/Scraptown | Learned Factory garrison access intel 4982 | -9/Scraptown | Learned Research security intel 4983 | -9/Scraptown | Learned 12 Factory zone layouts 5004 | -9/Scraptown | Discovered new exit (range 5) 5104 | -9/Scraptown | Visited Cave Peace 5118 | -9/Scraptown | Visited Red Mages 5168 | -9/Scraptown | Visited Symbiants 5477 | -9/Scraptown | Visited Assassins FH 5499 | -9/Scraptown | Visited TADAMA 5530 | -9/Scraptown | Visited UFD Registry 5530 | -9/Scraptown | Registered with UFD as "Chaintalker" 5550 | -9/Scraptown | Visited Shadow of the Wyrm 5612 | -9/Scraptown | Visited Sword Containment 5656 | -9/Scraptown | Visited Scrap Suit Storage 5694 | -9/Scraptown | Received an X-ray algorithm 5704 | -9/Scraptown | Visited Scrapoid Research Area 5752 | -9/Scraptown | Delivered Scrap Shield to a Scientist 5881 | -9/Scraptown | Visited LU-1G1's Boring Crew 5941 | -9/Scraptown | Visited Scrapoid Pod Storage 5948 | -9/Scraptown | Found Scrapoid Pod 5969 | -9/Scraptown | Visited Observation Area 6014 | -9/Scraptown | Visited Abandonware Association 6029 | -9/Scraptown | Learned abandonware demo "OVRCLOCK.EXE" 6032 | -9/Scraptown | Learned abandonware demo "KABOOM.EXE" 6032 | -9/Scraptown | Learned abandonware demo "POISON.EXE" 6075 | -9/Scraptown | Discovered new exit (range 5) 6177 | -9/Scraptown | Visited A0-MCA Data Center 6186 | -9/Scraptown | Given a C rating by A0-MCA 6192 | -9/Scraptown | Found A0-MCA's Component Scanner 6222 | -9/Scraptown | Visited Analyses Database 6393 | -9/Scraptown | Met Optimus 6393 | -9/Scraptown | Accepted into 0bPrime 6465 | -9/Scraptown | Entered Factory 6465 | -6/Factory | Evolved 8 slots: Propulsion x4, Utility x4 6466 | -6/Factory | Identified exit to Factory 6467 | -6/Factory | Loaded intel: 4 garrison access locations 6679 | -6/Factory | Loaded intel: 8 recycling unit locations 6924 | -6/Factory | Build established: Scavenger-Mutant 6992 | -6/Factory | Lost 4 parts (3n1u) 7034 | -6/Factory | Learned location of Protoforge (-3) 7792 | -6/Factory | Discovered new exit (range 16) 8230 | -6/Factory | Build established: Mutant 8257 | -6/Factory | Identified exit to Lower Caves 8341 | -6/Factory | Core integrity fell below 50% 8691 | -6/Factory | Spotted B-75 Beast 9036 | -6/Factory | Sucked down chute 9036 | -6/Factory | Entered Waste 9036 | -6/Waste | The area was eerily silent 9036 | -6/Waste | Met up with 2 allies sucked down the chute earlier 9091 | -6/Waste | Build established: Scout 9111 | -6/Waste | Discovered new exit (range 16) 9116 | -6/Waste | Identified exit to Factory 9146 | -6/Waste | A Compactor rumbled back to life 9146 | -6/Waste | Spotted C-40 Crusher 9151 | -6/Waste | Entered Factory 9424 | -6/Factory | Loaded intel: 8 recycling unit locations 9860 | -6/Factory | Repaired Cld. Airjet 9983 | -6/Factory | Found Prototype Processor 10313 | -6/Factory | Build established: Mutant 10554 | -6/Factory | Discovered exit to Factory (range 14) 10758 | -6/Factory | Entered Lower Caves 10760 | -6/Lower Caves | Scrapoid Pod released 06L07-D (x5) 10760 | -6/Lower Caves | UFD Scientist delivered a prototype 10761 | -6/Lower Caves | Found Prototype Protection 10761 | -6/Lower Caves | Identified Enh. Scrap Shield 10777 | -6/Lower Caves | Encountered a Warlord checkpoint 10864 | -6/Lower Caves | Learned 4 Factory zone layouts 11152 | -6/Lower Caves | Spotted B-75 Beast 11186 | -6/Lower Caves | Allies destroyed B-75 Beast 11336 | -6/Lower Caves | Identified Exp. Targeting Computer 11392 | -6/Lower Caves | Ambushed by wild Derelicts 11460 | -6/Lower Caves | Discovered new exit (range 8) 11467 | -6/Lower Caves | Identified exit to Lower Caves 11559 | -6/Lower Caves | Entered another Lower Caves area 11608 | -6/Lower Caves | Encountered a Warlord checkpoint 11622 | -6/Lower Caves | Discovered exit to Factory (range 15) 11757 | -6/Lower Caves | Learned location of 1 exit from Factory 11798 | -6/Lower Caves | Discovered new exit (range 13) 11808 | -6/Lower Caves | Identified exit to Zion 11907 | -6/Lower Caves | Entered Zion 11916 | -6/Zion | Learned Factory emergency access door positions 11936 | -6/Zion | Discovered new exit (range 10) 11939 | -6/Zion | Identified exit to Proximity Caves 11957 | -6/Zion | System corruption cleaned by Quarantine Array 11992 | -6/Zion | Learned Factory scanalyzer intel 11999 | -6/Zion | Received a hallucinogenic algorithm 12059 | -6/Zion | Turned away by Imprinter 12098 | -6/Zion | Learned location of Armory (-3) 12218 | -6/Zion | Entered Proximity Caves 12250 | -5/Proximity Caves | Spotted B-75 Beast 12299 | -5/Proximity Caves | Learned 4 Factory zone layouts 12462 | -5/Proximity Caves | Core integrity fell below 20% 12793 | -5/Proximity Caves | Discovered exit to Factory (range 11) 12798 | -5/Proximity Caves | Entered Factory 12798 | -5/Factory | Evolved 2 slots: Utility x2 12799 | -5/Factory | Identified exit to Upper Caves 12802 | -5/Factory | Loaded intel: 4 scanalyzer locations 13195 | -5/Factory | Loaded intel: 7 recycling unit locations 13301 | -5/Factory | Discovered new exit (range 16) 13305 | -5/Factory | Build established: Scavenger-Scout 13482 | -5/Factory | Spotted B-75 Beast 13552 | -5/Factory | Fabricated Microactuators (x2) 13633 | -5/Factory | System corruption reached 10% 13812 | -5/Factory | Repaired Broken Cld. Aerolev Unit 13859 | -5/Factory | Lost 4 parts (1p2n1u) 14361 | -5/Factory | Manually triggered Chute Trap 14361 | -5/Factory | Sucked down chute 14361 | -5/Factory | Entered Waste 14362 | -5/Waste | Joined by Warlord forces that had cleared the area 14512 | -5/Waste | Discovered new exit (range 12) 14515 | -5/Waste | Identified exit to Factory 14679 | -5/Waste | Entered Factory 14679 | -5/Factory | Accompanied by 20 allies 14704 | -5/Factory | Loaded intel: 8 recycling unit locations 14791 | -5/Factory | Spotted B-75 Beast 14806 | -5/Factory | Lost 4 allies 15578 | -5/Factory | Cargo convoy interrupted 15630 | -5/Factory | Found Prototype Processor 15630 | -5/Factory | Identified Exp. Core Analyzer 15772 | -5/Factory | Entered Upper Caves 15788 | -5/Upper Caves | Encountered a Warlord checkpoint 15880 | -5/Upper Caves | Spotted B-75 Beast 16012 | -5/Upper Caves | Build established: Scout 16047 | -5/Upper Caves | Discovered new exit (range 9) 16052 | -5/Upper Caves | Identified exit to Upper Caves 16072 | -5/Upper Caves | Learned Factory terminal intel 16110 | -5/Upper Caves | Entered another Upper Caves area 16111 | -5/Upper Caves | Forged Quantum Companion 16124 | -5/Upper Caves | Discovered new exit (range 9) 16155 | -5/Upper Caves | Identified exit to Factory 16268 | -5/Upper Caves | Learned Factory trap positions 16516 | -5/Upper Caves | Encountered a Warlord checkpoint 16530 | -5/Upper Caves | Discovered new exit (range 5) 16533 | -5/Upper Caves | Identified exit to Zhirov 16572 | -5/Upper Caves | Entered Zhirov 16572 | -5/Zhirov | Discovered new exit (range 3) 16573 | -5/Zhirov | Identified exit to Proximity Caves 16579 | -5/Zhirov | Met Zhirov 16587 | -5/Zhirov | Learned location of Quarantine (-3) 16587 | -5/Zhirov | Learned location of Testing (-2) 16587 | -5/Zhirov | Learned location of Command (-1) 16590 | -5/Zhirov | Zhirov requested help retrieving the SGEMP Prototype 16596 | -5/Zhirov | Found Alien Artifact 16596 | -5/Zhirov | Identified Integrated Reactor 16596 | -5/Zhirov | Installed Integrated Reactor, increased core energy generation (+10) 16607 | -5/Zhirov | Found Alien Artifact 16680 | -5/Zhirov | Entered Proximity Caves 16683 | -4/Proximity Caves | Spotter reported a threat 16684 | -4/Proximity Caves | Spotter reported a threat 16710 | -4/Proximity Caves | Destroyed 7 combat bots 16911 | -4/Proximity Caves | Build established: Mutant 16943 | -4/Proximity Caves | Discovered exit to Factory (range 10) 16963 | -4/Proximity Caves | Learned location of 1 exit from Research 16994 | -4/Proximity Caves | Learned Armory stockpile data 16994 | -4/Proximity Caves | Learned 8 Factory zone layouts 17177 | -4/Proximity Caves | Received a Behemoth hack from an annoying Tinkerer 17265 | -4/Proximity Caves | Entered Factory 17265 | -4/Factory | Evolved 2 slots: Utility x2 17267 | -4/Factory | Loaded intel: 78 trap records 17268 | -4/Factory | Loaded intel: 28 terminal locations 17296 | -4/Factory | Discovered new exit (range 14) 17309 | -4/Factory | Discovered new exit (range 5) 17397 | -4/Factory | Identified exit to Research 17703 | -4/Factory | Lost 4 parts (1n2u1w) 17817 | -4/Factory | Lost 3 parts (3n) 17818 | -4/Factory | Destroyed 7 combat bots 17919 | -4/Factory | Discovered new exit (range 23) 17921 | -4/Factory | Build established: Scavenger-Mutant 17937 | -4/Factory | Identified exit to Extension 17991 | -4/Factory | Discovered new exit (range 16) 18191 | -4/Factory | Spotted B-86 Titan 18231 | -4/Factory | Lost 3 parts (1p2n) 18423 | -4/Factory | Discovered new exit (range 10) 18484 | -4/Factory | Discovered exit to Research (range 19) 18732 | -4/Factory | Cargo convoy interrupted 18917 | -4/Factory | Repaired Broken Cld. Aerolev Unit 19045 | -4/Factory | Build established: Mutant 19066 | -4/Factory | System corruption reached 10% 19242 | -4/Factory | Loaded intel: 8 recycling unit locations 19515 | -4/Factory | First assault squad dispatched 19520 | -4/Factory | Manually triggered Chute Trap 19520 | -4/Factory | Sucked down chute 19520 | -4/Factory | Entered Waste 19520 | -4/Waste | The area was eerily silent 19559 | -4/Waste | Discovered new exit (range 22) 19608 | -4/Waste | Entered Factory 19765 | -4/Factory | Loaded intel: 7 recycling unit locations 19777 | -4/Factory | Core integrity fell below 50% 19894 | -4/Factory | Found Exp. Hacking Suite 19953 | -4/Factory | Discovered exit to Extension (range 21) 19975 | -4/Factory | Build established: Sprinter 20002 | -4/Factory | Spotted B-86 Titan 20125 | -4/Factory | Fabricated Weapon Mount (x2) 20271 | -4/Factory | Discovered new exit (range 6) 20672 | -4/Factory | Cargo convoy interrupted 20734 | -4/Factory | Found Exp. Actuator Array 20947 | -4/Factory | Entered Extension 20961 | -4/Extension | Rescued a captive Derelict 20962 | -4/Extension | Rescued a captive Derelict 20981 | -4/Extension | Rescued a captive Derelict 21125 | -4/Extension | Rescued a captive Derelict 21132 | -4/Extension | Spotted B-86 Titan 21135 | -4/Extension | Loaded intel: 2 recycling unit locations 21361 | -4/Extension | Spotted B-86 Titan 21364 | -4/Extension | Befriended a Behemoth using the annoying Tinkerer's hack 21365 | -4/Extension | Befriended a Behemoth using the annoying Tinkerer's hack 21450 | -4/Extension | Rescued A7 21470 | -4/Extension | Lost 4 allies 21470 | -4/Extension | Rescued a captive Derelict 21531 | -4/Extension | Rescued a captive Derelict 21532 | -4/Extension | Rescued a captive Derelict 21536 | -4/Extension | Rescued a captive Derelict 21537 | -4/Extension | Rescued a captive Derelict 21544 | -4/Extension | Rescued a captive Derelict 21545 | -4/Extension | Rescued a captive Derelict 21550 | -4/Extension | Discovered exit to Research (range 10) 21551 | -4/Extension | Discovered new exit (range 6) 21711 | -4/Extension | Build established: Commander-Sprinter 21733 | -4/Extension | Entered Cetus 21733 | -4/Cetus | Accompanied by 16 allies (A7) 21735 | -4/Cetus | Spotted Cetus Guard 21735 | -4/Cetus | Spotted Cetus Guard 21738 | -4/Cetus | Acquired a Cetus Manufacturing Module code from A7 21754 | -4/Cetus | Spotted Cetus Guard 21758 | -4/Cetus | Allies destroyed Cetus Guard 21783 | -4/Cetus | Started Cetus Manufacturing Module 21794 | -4/Cetus | Escorted A7 to Cetus Mainframe 21808 | -4/Cetus | Manufactured an Enhanced Grunt 21833 | -4/Cetus | Manufactured an Enhanced Grunt 21858 | -4/Cetus | Manufactured an Enhanced Grunt 21883 | -4/Cetus | Manufactured an Enhanced Grunt 21908 | -4/Cetus | Manufactured an Enhanced Grunt 21912 | -4/Cetus | Discovered new exit (range 22) 21917 | -4/Cetus | Spotted Cetus Guard 21917 | -4/Cetus | Spotted Cetus Guard 21932 | -4/Cetus | Spotted Cetus Guard 21933 | -4/Cetus | Spotted Cetus Guard 21935 | -4/Cetus | Discovered exit to Research (range 22) 21941 | -4/Cetus | Destroyed Cetus Guard 21945 | -4/Cetus | Destroyed Cetus Guard 21947 | -4/Cetus | Destroyed Cetus Guard 21948 | -4/Cetus | Allies destroyed Cetus Guard 21950 | -4/Cetus | Met Revision 17 22010 | -4/Cetus | Entered Archives 22010 | -4/Archives | Accompanied by 19 allies (A7) 22015 | -4/Archives | Received a hacking code to weaken MAIN.C 22054 | -4/Archives | Discovered new exit (range 15) 22068 | -4/Archives | Discovered exit to Research (range 23) 22146 | -4/Archives | Discovered new exit (range 20) 22440 | -4/Archives | Build established: Commander-Mutant 22703 | -4/Archives | Entered Hub_04(d) 22703 | -4/Hub_04(d) | Accompanied by 15 allies 22755 | -4/Hub_04(d) | Discovered exit to Research (range 14) 22881 | -4/Hub_04(d) | Discovered exit to Research (range 11) 22936 | -4/Hub_04(d) | Lost 4 allies 22947 | -4/Hub_04(d) | Network Hub disabled 22947 | -4/Hub_04(d) | Network Hub disabled 22967 | -4/Hub_04(d) | Disrupted transfer network 23007 | -4/Hub_04(d) | Network Hub disabled 23057 | -4/Hub_04(d) | Spotted Lightning 23057 | -4/Hub_04(d) | Spotted Lightning 23089 | -4/Hub_04(d) | Entered Research 23089 | -3/Research | Evolved 2 slots: Power x1, Propulsion x1 23090 | -3/Research | Identified exit to Research 23188 | -3/Research | Identified exit to Armory 23188 | -3/Research | Identified exit to Quarantine 23250 | -3/Research | Build established: Sprinter 23289 | -3/Research | Revision forces began assault on 0b10 23359 | -3/Research | Fabricated Ragnarok Missile Launcher (x1) 23393 | -3/Research | Fabricated Cmb. Linear Gravjet (x2) 23412 | -3/Research | Loaded intel: 5 recycling unit locations 23425 | -3/Research | Met up with Revision 17++ 23459 | -3/Research | Found Spectral Analyzer 23567 | -3/Research | Fabricated Nanoactuators (x2) 23789 | -3/Research | Research terminal network offline 23851 | -3/Research | Build established: Machinist-Sprinter 23858 | -3/Research | Spotted Striker 23862 | -3/Research | Spotted Striker 23862 | -3/Research | Spotted Striker 23930 | -3/Research | Entered Quarantine 24018 | -3/Quarantine | Found Alien Artifact 24021 | -3/Quarantine | Identified Subatomic Replicator 24021 | -3/Quarantine | Forged Prototype Slashing Weapon 24041 | -3/Quarantine | Discovered exit to Research (range 10) 24094 | -3/Quarantine | Found Alien Artifact 24094 | -3/Quarantine | Identified Dimensional Node Initializer 24094 | -3/Quarantine | Initialized slip node 24101 | -3/Quarantine | Identified Transdimensional Reconstructor 24129 | -3/Quarantine | Found Alien Artifact 24134 | -3/Quarantine | Identified Hpw. Transdimensional Reconstructor 24143 | -3/Quarantine | Found Dimensional Node Initializer 24292 | -3/Quarantine | Spotted Fortress 24307 | -3/Quarantine | Discovered new exit (range 7) 24307 | -3/Quarantine | Discovered new exit (range 6) 24308 | -3/Quarantine | Entered Protoforge 24344 | -3/Protoforge | Spotted Hotshot 24495 | -3/Protoforge | Spotted AP7-3 24561 | -3/Protoforge | Spotted Hotshot 24561 | -3/Protoforge | Spotted Hotshot 24563 | -3/Protoforge | Destroyed Hotshot 24565 | -3/Protoforge | Superfortress began startup sequence 24568 | -3/Protoforge | Destroyed Hotshot 24580 | -3/Protoforge | Spotted AP7-3 24585 | -3/Protoforge | Initialized slip node 24678 | -3/Protoforge | Found Crosscalibrator 24706 | -3/Protoforge | Spotted Immortal 24706 | -3/Protoforge | Spotted Decapitator 24706 | -3/Protoforge | Spotted Decapitator 24706 | -3/Protoforge | Spotted Decapitator 24706 | -3/Protoforge | Spotted Decapitator 24707 | -3/Protoforge | Spotted Immortal 24720 | -3/Protoforge | Found Cep. Rapid Grenade Launcher 24733 | -3/Protoforge | Destroyed Decapitator 24733 | -3/Protoforge | Destroyed Decapitator 24735 | -3/Protoforge | Destroyed Decapitator 24735 | -3/Protoforge | Destroyed Decapitator 24760 | -3/Protoforge | Spotted V892-p 24760 | -3/Protoforge | Found Cep. Energy Mantle 24764 | -3/Protoforge | Found Faulty Cep. Reaction Jets 24766 | -3/Protoforge | Found Faulty Cep. Reaction Jets 24775 | -3/Protoforge | Found Cep. Projectile Intercept Suite 24776 | -3/Protoforge | Found Cep. RG22 Armor 24778 | -3/Protoforge | Found Cep. Phase Shift Module 24789 | -3/Protoforge | Spotted Decapitator 24789 | -3/Protoforge | Spotted Decapitator 24789 | -3/Protoforge | Spotted Decapitator 24854 | -3/Protoforge | Found Femtoactuators 24857 | -3/Protoforge | Found Cep. Weapon Articulator 24858 | -3/Protoforge | Found Faulty Femtoactuators 24861 | -3/Protoforge | Found Cep. Melee Reflex Suite 24880 | -3/Protoforge | Spotted V238-u 24880 | -3/Protoforge | Spotted V122-q 24881 | -3/Protoforge | Build established: Sprinter 24945 | -3/Protoforge | Found Cep. Zero-point Core 24959 | -3/Protoforge | Spotted Decapitator 24962 | -3/Protoforge | Destroyed Decapitator 24981 | -3/Protoforge | Spotted V797-y 24983 | -3/Protoforge | Found Cep. Deflector Sword 24998 | -3/Protoforge | Spotted V531-h 24998 | -3/Protoforge | Spotted V070-k 25028 | -3/Protoforge | System corruption reached 10% 25044 | -3/Protoforge | Spotted V923-k 25058 | -3/Protoforge | First assault squad dispatched 25120 | -3/Protoforge | Found Cep. Gyrokinetic System 25122 | -3/Protoforge | Found Cep. Combat Aerolev Unit 25140 | -3/Protoforge | Found Cep. Combat Aerolev Unit 25147 | -3/Protoforge | Spotted AP7-3 25147 | -3/Protoforge | Spotted AP7-3 25151 | -3/Protoforge | Scanned by Researcher 25158 | -3/Protoforge | Found Cep. Impact Drone Bay 25161 | -3/Protoforge | Found Cep. Cloak Mesh 25163 | -3/Protoforge | Warped through subspace to slip node 25262 | -3/Protoforge | Destroyed AP7-3 25273 | -3/Protoforge | Destroyed AP7-3 25304 | -3/Protoforge | Spotted EXE-6 25304 | -3/Protoforge | Spotted EXE-6 25313 | -3/Protoforge | UFD initiated attack on Protoforge 25313 | -3/Protoforge | Loaded intel: 3 recycling unit locations 25390 | -3/Protoforge | Optimus greeted in Protoforge 25406 | -3/Protoforge | Spotted Striker 25424 | -3/Protoforge | Found Exp. Armor Integrity Analyzer 25428 | -3/Protoforge | Found Cep. XC Strikerail 25450 | -3/Protoforge | Spotted Decapitator 25477 | -3/Protoforge | Found Exp. Core Analyzer 25487 | -3/Protoforge | Spotted Decapitator 25489 | -3/Protoforge | Destroyed Decapitator 25490 | -3/Protoforge | Spotted Executioner 25496 | -3/Protoforge | Spotted Immortal 25501 | -3/Protoforge | Optimus attacked Superfortress 25509 | -3/Protoforge | Spotted Hotshot 25516 | -3/Protoforge | Core integrity fell below 50% 25518 | -3/Protoforge | Destroyed Superfortress 25521 | -3/Protoforge | Destroyed Hotshot 25524 | -3/Protoforge | Destroyed Immortal 25549 | -3/Protoforge | Lost 5 parts (2n3u) 25552 | -3/Protoforge | Lost 14 allies 25554 | -3/Protoforge | Spotted Executioner 25611 | -3/Protoforge | Spotted V171-n 25611 | -3/Protoforge | Spotted V958-a 25611 | -3/Protoforge | Spotted V424-h 25612 | -3/Protoforge | Found Cep. RG22 Armor 25699 | -3/Protoforge | UFD reported confirmed Drillbomb installation 25759 | -3/Protoforge | Spotted V109-y 25760 | -3/Protoforge | Found Cep. Antigrav Storage Unit 25762 | -3/Protoforge | Found Cep. NT7 Matterbank 25764 | -3/Protoforge | Found Cep. Chromion Battery 25800 | -3/Protoforge | Found Cep. Combat Aerolev Unit 25821 | -3/Protoforge | Additional patrols dispatched to research labs 25823 | -3/Protoforge | Found Alien Artifact 25823 | -3/Protoforge | Identified Cep. Nanofilaments [Tensile] 25823 | -3/Protoforge | Installed Cep. Nanofilaments [Tensile], 3 resistances modified: KI +20%, TH -10%, I +20% 25834 | -3/Protoforge | Found Transdimensional Reconstructor 25834 | -3/Protoforge | Warped through subspace to slip node 25841 | -3/Protoforge | Spotted Striker 25847 | -3/Protoforge | Spotted Striker 25851 | -3/Protoforge | Spotted Hotshot 25851 | -3/Protoforge | Spotted Hotshot 25882 | -3/Protoforge | Core integrity fell below 20% 25885 | -3/Protoforge | Spotted Striker 25885 | -3/Protoforge | Spotted Executioner 25885 | -3/Protoforge | Spotted Executioner 25885 | -3/Protoforge | Spotted B-86 Titan 25885 | -3/Protoforge | Spotted Executioner 25890 | -3/Protoforge | Discovered exit to Research (range 14) 25895 | -3/Protoforge | Entered Research 25895 | -2/Research | Evolved 2 slots: Power x1, Propulsion x1 25918 | -2/Research | Lost 5 parts (1p2n2u) 25957 | -2/Research | Spotted B-90 Cyclops 26145 | -2/Research | First assault squad dispatched 26272 | -2/Research | Fabricated Cmb. Linear Gravjet (x2) 26358 | -2/Research | Identified exit to Testing 26484 | -2/Research | Spotted Striker 26484 | -2/Research | Spotted Striker 26520 | -2/Research | Discovered new exit (range 5) 26595 | -2/Research | Entered Testing 26610 | -2/Testing | Destroyed 7 combat bots 26612 | -2/Testing | Found Prototype Protection 26612 | -2/Testing | Identified Hvy. Regenerative Plating 26614 | -2/Testing | Found Prototype Protection 26614 | -2/Testing | Identified SHELL Armor 26686 | -2/Testing | Spotted Striker 26686 | -2/Testing | Spotted Striker 26826 | -2/Testing | Discovered new exit (range 9) 26845 | -2/Testing | First assault squad dispatched 26923 | -2/Testing | Found Prototype Energy Cannon 26978 | -2/Testing | Spotted Striker 26978 | -2/Testing | Spotted Striker 26996 | -2/Testing | Entered Access 26996 | -1/Access | Evolved 2 slots: Utility x2 27008 | -1/Access | Identified Imp. Potential Cannon 27139 | -1/Access | Spotted B-99 Colossus 27165 | -1/Access | Build established: Mutant 27246 | -1/Access | First assault squad dispatched 27309 | -1/Access | Spotted B-99 Colossus 27390 | -1/Access | Identified exit to Surface 27450 | -1/Access | Destroyed 7 combat bots 27810 | -1/Access | Spotted B-99 Colossus 27936 | -1/Access | Discovered new exit (range 7) 27975 | -1/Access | Destroyed 9 combat bots 27988 | -1/Access | Entered Command 28143 | -1/Command | Spotted B-99 Colossus 28146 | -1/Command | Spotted M Guard 28146 | -1/Command | Spotted Combat Programmer 28218 | -1/Command | Met MAIN.C 28218 | -1/Command | Hacked MAIN.C using A7's code 28238 | -1/Command | First assault squad dispatched 28244 | -1/Command | Destroyed MAIN.C Shell 28244 | -1/Command | 0b10 Conduit disabled 28245 | -1/Command | MAIN.C activated Command garrisons 28277 | -1/Command | Spotted Combat Programmer 28285 | -1/Command | Spotted M Guard 28292 | -1/Command | Destroyed MAIN.C 28296 | -1/Command | Combat Programmer assimilated allied M Guard 28323 | -1/Command | System corruption reached 10% 28323 | -1/Command | Destroyed Combat Programmer 28327 | -1/Command | Destroyed Combat Programmer 28492 | -1/Command | Build established: Gladiator 28751 | -1/Command | Found Prototype Ballistic Gun 28751 | -1/Command | Identified Hyp. Multirail 28757 | -1/Command | Found Prototype Device 28757 | -1/Command | Identified Exp. System Purifier 28935 | -1/Command | Found Prototype Reactor 28935 | -1/Command | Identified Zero-point Reactor 29068 | -1/Command | Discovered exit to Surface (range 13) 29167 | -1/Command | Found Zero-point Reactor 29829 | -1/Command | Found Exp. ECM Suite 29834 | -1/Command | Build established: Scavenger-Sprinter 30248 | -1/Command | Warped through subspace to slip node 30248 | -1/Command | Discovered new exit (range 4) 30251 | -1/Command | Entered Access_0 30252 | -1/Access_0 | Met Architect 30306 | -1/Access_0 | Found Prototype Device 30306 | -1/Access_0 | Identified Imp. Particle Accelerator 30355 | -1/Access_0 | A6 warped into view 30367 | -1/Access_0 | Subspace Access Node disabled 30381 | -1/Access_0 | Subspace Access Node disabled 30433 | -1/Access_0 | Build established: Sprinter 30437 | -1/Access_0 | A5 warped into view 30511 | -1/Access_0 | Subspace Access Node disabled 30517 | -1/Access_0 | Subspace Access Node disabled 30567 | -1/Access_0 | Allies destroyed A6 30572 | -1/Access_0 | Destroyed Architect 30573 | -1/Access_0 | Architect triggered a singularity event 30573 | -1/Access_0 | Found Hpw. Transdimensional Reconstructor 30574 | -1/Access_0 | Extracted unknown sensor trigger ID from Architect's data core 30574 | -1/Access_0 | Warped through subspace to slip node 30574 | -1/Access_0 | Discovered exit to Surface (range 8) 30577 | *** | Escaped singularity! Last Messages --------------- The surroundings shift and blur. 30574_ Warped through subspace, drawn to slip node. 30574_ EXIT=FOUND: SURFACE 30575_ A0_COM: 9. 30575_ Enhanced Grunt knocked back. 30575_ Enhanced Grunt suffers critical hit (Smash). 30575_ Enhanced Grunt knocked back. 30576_ A0_COM: 8. 30577_ A0_COM: 7. 30577_ HV Slug penetrates Wall. 30577_ HV Slug penetrates Enhanced Grunt. 30577_ Enhanced Grunt suffers critical hit (Destroy). 30577_ Impact Drone suffers critical hit (Destroy). 30577_ Impact Drone knocked back. 30577_ Impact Drone suffers critical hit (Destroy). Map ----- +----------------------------------------------------+ | | | | | | | | | | | | | | | | | | | | | | | | | | | | | | | | | ?????????????????????????????????????????????????? | | ?????????????????????????????????????????????????? | | ?????????????????????????????????????????????????? | | ?????????????????????????????????????????????????? | | ?????????????????????????????????????????????????? | | ?????????????????????????????????????????????????? | | ????????????????????????###??????????????????????? | | ???????????????????????## ##?????????????????????? | | ???????????????????????# #?????????????????????? | | ???????????????????????# @ #?????????????????????? | | ??????????????????????## #?????????????????????? | | ??????????????????????# #?????????????????????? | | ??????????????????????# ##?????????????????????? | | ??????????????????????## #?????????????????????? | | ??????????????????????# #?????????????????????? | | ??????????????????????# ##?????????????????????? | | ??????????????????????# < #?????????????????????? | | ??????????????????????# ##?????????????????????? | | ??????????????????????## #??????????????????????? | | ???????????????????????####??????????????????????? | | ?????????????????????????????????????????????????? | | ?????????????????????????????????????????????????? | | ?????????????????????????????????????????????????? | | ?????????????????????????????????????????????????? | | ?????????????????????????????????????????????????? | | ?????????????????????????????????????????????????? | | ?????????????????????????????????????????????????? | | ?????????????????????????????????????????????????? | | ?????????????????????????????????????????????????? | | ?????????????????????????????????????????????????? | | ?????????????????????????????????????????????????? | | ?????????????????????????????????????????????????? | | ?????????????????????????????????????????????????? | | ?????????????????????????????????????????????????? | +----------------------------------------------------+ Best States ------------- Heat Dissipation 90 Coolant Potential 50 Energy Generation 67 Energy Capacity 2950 Matter Stores 300 Matter Capacity 300 Sight Range 24 Robot Scan Range 16 Terrain Scan Range 16 Terrain Scan Density 10 ECM Strength 1 Jamming Range 12 Cloak Strength 6 Additional Mass Support 16 Corruption Block 5 Armor Coverage 900 Resistance: KI 50 Resistance: I 20 Propulsion Shielding 90 Utility Shielding 66 Point Defense Rating 240 Projectile Deflection 15 Melee Speed Boost 50 Phase Shifting 25 Evasion (%) 102 Targeting Accuracy 30 Melee Accuracy 16 Core Analysis 12 Armor Integrity Analysis 50 Recoil Reduction 2 Force Boost 30 Offensive Hacking 24 Defensive Hacking 10 Authchip Count 2 Trap Extractor Capacity 6 Item Schematics ----------------- Hcp. Storage Unit | -10/Materials | Hacked Huge Storage Unit | -10/Materials | Hacked Cld. Airjet | -6/Factory | Scanalyzed Hvy. Plasma Cannon | -6/Zion | Archive Disruptor Cannon | -6/Zion | Archive Imp. Particle Charger | -6/Zion | Archive Adv. Shield Generator | -6/Zion | Archive Enh. Optical Array | -6/Zion | Archive Adv. Recoil Stabilizer | -6/Zion | Archive Flexi-carbon Leg | -6/Zion | Archive Lgt. Antimatter Reactor | -6/Zion | Archive Enh. Gauss Cannon | -6/Zion | Archive Power Sword | -6/Zion | Archive Hvy. Flak Cannon | -6/Zion | Archive Lrn. Tractor Beam | -6/Zion | Archive Imp. System Guard | -6/Zion | Archive Imp. System Restoration Module | -6/Zion | Archive Tesla Rifle | -6/Zion | Archive Microactuators | -5/Factory | Hacked Assault Drone Bay | -5/Zhirov | Free Exp. Heat Sink | -5/Zhirov | Free Exp. Optical Array | -5/Zhirov | Free Imp. Arc Thrower | -5/Zhirov | Free Weapon Mount | -4/Factory | Hacked Nanoactuators | -4/Extension | Hacked Cmb. Linear Gravjet | -4/Hub_04(d) | Hacked Centrium Medium Armor Plating | -3/Research | Scanalyzed Adv. Powered Armor | -3/Quarantine | Hacked Exp. Target Analyzer | -3/Quarantine | Archive Neutron Missile Launcher | -3/Quarantine | Archive Hvy. Proton Cannon | -3/Quarantine | Archive Exp. Energy Well | -3/Quarantine | Archive Exp. Terrain Scan Processor | -3/Protoforge | Hacked Enh. Armored Medium Treads | -3/Protoforge | Archive Centrium Heavy Treads | -3/Protoforge | Archive Adv. Dynamic Insulation System | -3/Protoforge | Archive Com. Tesla Bomb Launcher | -3/Protoforge | Archive Plasma Sword | -3/Protoforge | Archive Adv. Plasma Rifle | -3/Protoforge | Archive Cld. Field Propulsion Drive | -3/Protoforge | Archive Mni. Smartbomb Launcher | -3/Protoforge | Archive Tactical Quantum Warhead | -2/Testing | Archive Imp. Diametric Drive | -2/Testing | Archive Hds. Centrium Wheel | -2/Testing | Archive Exp. Shield Generator | -2/Testing | Archive Lrn. Phase Cannon | -2/Testing | Archive Robot Schematics ------------------ B-48 Gladiator | -6/Zion | Archive R-06 Scavenger | -6/Zion | Archive E-15 Imp | -6/Zion | Archive X-82 Rainmaker | -6/Zion | Archive T-07 Excavator | -3/Quarantine | Archive R-10 Processor | -3/Quarantine | Archive A-02 Transporter | -2/Testing | Archive L-61 Swordsman | -2/Testing | Archive Fabricated ------------ Microactuators | x2 | -5/Factory | Authchip Weapon Mount | x2 | -4/Factory | Authchip Ragnarok Missile Launcher | x1 | -3/Research | Preloaded Cmb. Linear Gravjet | x2 | -3/Research | Authchip Nanoactuators | x2 | -3/Research | Authchip Cmb. Linear Gravjet | x2 | -2/Research | Preloaded Repaired ---------- Cld. Airjet | 1% | -6/Factory Cld. Aerolev Unit | 42% | -5/Factory | Broken Cld. Aerolev Unit | 12% | -4/Factory | Broken Alien Tech Used ----------------- Integrated Reactor Subatomic Replicator Dimensional Node Initializer Transdimensional Reconstructor Concept Nanofilaments [Tensile] High-powered Transdimensional Reconstructor Achievements -------------- None Challenges ------------ None Game ------ Seed StasisNodePower Manual? 0 Play Time 10:00:18 Cumulative 572.5 hours Start 2025.08.15 @ 18:32:51 End 2025.08.16 @ 21:03:55 Sessions 9 Manual Loads 0 Difficulty Rogue Special Mode None Game No. 123 Rogue 123 Adventurer 0 Explorer 0 Win Type 6 Total 43 Types 21/2/8/2/1/0/4/3/1/1 Lore% 93 Gallery% 83 Achievement% 83 Wizard Run 0 Options --------- Layout 1 ASCII 0 Keyboard 0 Movement Mouse Keybinds 0 Fullscreen 1 Font 24/Smallcaps Map View 50x35 Zoom Use 0% Tactical HUD 1 Map Filters NONE Filters NONE Steam 1 RUN: 5916bdbb-cabf-4ca7-906e-0b1ed9e8f8e7